Workbook

Sheet Sheet1
Q2: first conclusion: 1 sample per ns is not enough to smoothly represent spacefence waveform, 3 samples per ns is.
B3: E_Layer_Bottom | C3: 56 | D3: Minimum | E3: Maximum | F3: Actual | G3: Actual | J3: time | L3: Station Signal | M3: Station Signal | O3: Station Signal | P3: Station Signal
B4: F_Layer_Top | C4: =311 -> 311 | D4: Propagation | E4: Propagation | F4: Propagation | G4: Propagation | J4: ns | L4: A Known Signal | M4: A Unknown Signal | O4: B Known Signal | P4: B Unknown Signal
C5: Geographic Distance | D5: Distance | E5: Distance | F5: Distance | G5: Time | J5: =0 -> 0 | L5: =KnownNoiseA*RANDBETWEEN(0,100)/100 + KnownAmplitudeA*COS(2*PI()*KnownFrequencyA*time+KnownPhaseA) -> 0.04277299599 | M5: =UnknownNoiseA*RANDBETWEEN(0,100)/100 + UnknownAmplitudeA*COS(2*PI()*UnknownFrequencyA*time+UnknownPhaseA) -> -0.2468768484 | O5: =KnownNoiseB*RANDBETWEEN(0,100)/100 + KnownAmplitudeB*COS(2*PI()*KnownFrequencyB*time+KnownPhaseB) -> 0.3985781084 | P5: =UnknownNoiseB*RANDBETWEEN(0,100)/100 + UnknownAmplitudeB*COS(2*PI()*UnknownFrequencyB*time+UnknownPhaseB) -> 1.049372462
C6: miles | D6: miles | E6: miles | F6: miles | G6: ns | J6: =J5+1/samplesPerNanosecond -> 0.3333333333 | L6: =KnownNoiseA*RANDBETWEEN(0,100)/100 + KnownAmplitudeA*COS(2*PI()*KnownFrequencyA*time+KnownPhaseA) -> 0.1236159619 | M6: =UnknownNoiseA*RANDBETWEEN(0,100)/100 + UnknownAmplitudeA*COS(2*PI()*UnknownFrequencyA*time+UnknownPhaseA) -> 0.1696625347 | O6: =KnownNoiseB*RANDBETWEEN(0,100)/100 + KnownAmplitudeB*COS(2*PI()*KnownFrequencyB*time+KnownPhaseB) -> 0.4218558936 | P6: =UnknownNoiseB*RANDBETWEEN(0,100)/100 + UnknownAmplitudeB*COS(2*PI()*UnknownFrequencyB*time+UnknownPhaseB) -> 1.035066227
J7: =J6+1/samplesPerNanosecond -> 0.6666666667 | L7: =KnownNoiseA*RANDBETWEEN(0,100)/100 + KnownAmplitudeA*COS(2*PI()*KnownFrequencyA*time+KnownPhaseA) -> 0.1733438153 | M7: =UnknownNoiseA*RANDBETWEEN(0,100)/100 + UnknownAmplitudeA*COS(2*PI()*UnknownFrequencyA*time+UnknownPhaseA) -> 0.621280682 | O7: =KnownNoiseB*RANDBETWEEN(0,100)/100 + KnownAmplitudeB*COS(2*PI()*KnownFrequencyB*time+KnownPhaseB) -> 0.4844900891 | P7: =UnknownNoiseB*RANDBETWEEN(0,100)/100 + UnknownAmplitudeB*COS(2*PI()*UnknownFrequencyB*time+UnknownPhaseB) -> 0.8328059413
B8: A_To_Known | C8: 100 | D8: =2*SQRT(A_To_Known^2/4 +E_Layer_Bottom^2) -> 150.146595 | E8: =2*SQRT(A_To_Known^2/4 +F_Layer_Top^2) -> 629.9873015 | F8: =RANDBETWEEN(D8,E8) -> 206 | G8: =F8/185723.55 *1000000000 -> 1109175.438 | J8: =J7+1/samplesPerNanosecond -> 1 | L8: =KnownNoiseA*RANDBETWEEN(0,100)/100 + KnownAmplitudeA*COS(2*PI()*KnownFrequencyA*time+KnownPhaseA) -> 0.170883351 | M8: =UnknownNoiseA*RANDBETWEEN(0,100)/100 + UnknownAmplitudeA*COS(2*PI()*UnknownFrequencyA*time+UnknownPhaseA) -> 0.9553595881 | O8: =KnownNoiseB*RANDBETWEEN(0,100)/100 + KnownAmplitudeB*COS(2*PI()*KnownFrequencyB*time+KnownPhaseB) -> 0.519412917 | P8: =UnknownNoiseB*RANDBETWEEN(0,100)/100 + UnknownAmplitudeB*COS(2*PI()*UnknownFrequencyB*time+UnknownPhaseB) -> 0.3919056595
B9: A_To_Unknown | C9: 500 | D9: =A_To_Unknown -> 500 | E9: =A_To_Unknown -> 500 | F9: =A_To_Unknown -> 500 | G9: =F9/185723.55 *1000000000 -> 2692173.394 | J9: =J8+1/samplesPerNanosecond -> 1.333333333 | L9: =KnownNoiseA*RANDBETWEEN(0,100)/100 + KnownAmplitudeA*COS(2*PI()*KnownFrequencyA*time+KnownPhaseA) -> 0.2691616949 | M9: =UnknownNoiseA*RANDBETWEEN(0,100)/100 + UnknownAmplitudeA*COS(2*PI()*UnknownFrequencyA*time+UnknownPhaseA) -> 1.027526529 | O9: =KnownNoiseB*RANDBETWEEN(0,100)/100 + KnownAmplitudeB*COS(2*PI()*KnownFrequencyB*time+KnownPhaseB) -> 0.5695578481 | P9: =UnknownNoiseB*RANDBETWEEN(0,100)/100 + UnknownAmplitudeB*COS(2*PI()*UnknownFrequencyB*time+UnknownPhaseB) -> -0.04941575583
J10: =J9+1/samplesPerNanosecond -> 1.666666667 | L10: =KnownNoiseA*RANDBETWEEN(0,100)/100 + KnownAmplitudeA*COS(2*PI()*KnownFrequencyA*time+KnownPhaseA) -> 0.2891064303 | M10: =UnknownNoiseA*RANDBETWEEN(0,100)/100 + UnknownAmplitudeA*COS(2*PI()*UnknownFrequencyA*time+UnknownPhaseA) -> 0.940800419 | O10: =KnownNoiseB*RANDBETWEEN(0,100)/100 + KnownAmplitudeB*COS(2*PI()*KnownFrequencyB*time+KnownPhaseB) -> 0.5408597173 | P10: =UnknownNoiseB*RANDBETWEEN(0,100)/100 + UnknownAmplitudeB*COS(2*PI()*UnknownFrequencyB*time+UnknownPhaseB) -> -0.4369666922
B11: B_To_Known | C11: 50 | D11: =2*SQRT(B_To_Known^2/4 +E_Layer_Bottom^2) -> 122.6539849 | E11: =2*SQRT(B_To_Known^2/4 +F_Layer_Top^2) -> 624.0064102 | F11: =RANDBETWEEN(D11,E11) -> 315 | G11: =F11/185723.55 *1000000000 -> 1696069.238 | J11: =J10+1/samplesPerNanosecond -> 2 | L11: =KnownNoiseA*RANDBETWEEN(0,100)/100 + KnownAmplitudeA*COS(2*PI()*KnownFrequencyA*time+KnownPhaseA) -> 0.2896457265 | M11: =UnknownNoiseA*RANDBETWEEN(0,100)/100 + UnknownAmplitudeA*COS(2*PI()*UnknownFrequencyA*time+UnknownPhaseA) -> 0.7376177472 | O11: =KnownNoiseB*RANDBETWEEN(0,100)/100 + KnownAmplitudeB*COS(2*PI()*KnownFrequencyB*time+KnownPhaseB) -> 0.6522548389 | P11: =UnknownNoiseB*RANDBETWEEN(0,100)/100 + UnknownAmplitudeB*COS(2*PI()*UnknownFrequencyB*time+UnknownPhaseB) -> -0.757527202
B12: B_To_Unknown | C12: 550 | D12: =B_To_Unknown -> 550 | E12: =B_To_Unknown -> 550 | F12: =B_To_Unknown -> 550 | G12: =F12/185723.55 *1000000000 -> 2961390.734 | J12: =J11+1/samplesPerNanosecond -> 2.333333333 | L12: =KnownNoiseA*RANDBETWEEN(0,100)/100 + KnownAmplitudeA*COS(2*PI()*KnownFrequencyA*time+KnownPhaseA) -> 0.3507084641 | M12: =UnknownNoiseA*RANDBETWEEN(0,100)/100 + UnknownAmplitudeA*COS(2*PI()*UnknownFrequencyA*time+UnknownPhaseA) -> 0.3177269124 | O12: =KnownNoiseB*RANDBETWEEN(0,100)/100 + KnownAmplitudeB*COS(2*PI()*KnownFrequencyB*time+KnownPhaseB) -> 0.6226811181 | P12: =UnknownNoiseB*RANDBETWEEN(0,100)/100 + UnknownAmplitudeB*COS(2*PI()*UnknownFrequencyB*time+UnknownPhaseB) -> -0.9791955517
J13: =J12+1/samplesPerNanosecond -> 2.666666667 | L13: =KnownNoiseA*RANDBETWEEN(0,100)/100 + KnownAmplitudeA*COS(2*PI()*KnownFrequencyA*time+KnownPhaseA) -> 0.4462243589 | M13: =UnknownNoiseA*RANDBETWEEN(0,100)/100 + UnknownAmplitudeA*COS(2*PI()*UnknownFrequencyA*time+UnknownPhaseA) -> -0.09442419667 | O13: =KnownNoiseB*RANDBETWEEN(0,100)/100 + KnownAmplitudeB*COS(2*PI()*KnownFrequencyB*time+KnownPhaseB) -> 0.666078159 | P13: =UnknownNoiseB*RANDBETWEEN(0,100)/100 + UnknownAmplitudeB*COS(2*PI()*UnknownFrequencyB*time+UnknownPhaseB) -> -0.9246469565
B14: A_To_B | C14: =SQRT(A_To_Known^2 +B_To_Known^2) -> 111.8033989 | D14: =2*SQRT(A_To_B^2/4 +E_Layer_Bottom^2) -> 158.2529621 | E14: =2*SQRT(A_To_B^2/4 +F_Layer_Top^2) -> 631.9683536 | F14: =RANDBETWEEN(D14,E14) -> 264 | G14: =F14/185723.55 *1000000000 -> 1421467.552 | J14: =J13+1/samplesPerNanosecond -> 3 | L14: =KnownNoiseA*RANDBETWEEN(0,100)/100 + KnownAmplitudeA*COS(2*PI()*KnownFrequencyA*time+KnownPhaseA) -> 0.390124087 | M14: =UnknownNoiseA*RANDBETWEEN(0,100)/100 + UnknownAmplitudeA*COS(2*PI()*UnknownFrequencyA*time+UnknownPhaseA) -> -0.5726722839 | O14: =KnownNoiseB*RANDBETWEEN(0,100)/100 + KnownAmplitudeB*COS(2*PI()*KnownFrequencyB*time+KnownPhaseB) -> 0.7223873724 | P14: =UnknownNoiseB*RANDBETWEEN(0,100)/100 + UnknownAmplitudeB*COS(2*PI()*UnknownFrequencyB*time+UnknownPhaseB) -> -0.6476369888
J15: =J14+1/samplesPerNanosecond -> 3.333333333 | L15: =KnownNoiseA*RANDBETWEEN(0,100)/100 + KnownAmplitudeA*COS(2*PI()*KnownFrequencyA*time+KnownPhaseA) -> 0.4833394047 | M15: =UnknownNoiseA*RANDBETWEEN(0,100)/100 + UnknownAmplitudeA*COS(2*PI()*UnknownFrequencyA*time+UnknownPhaseA) -> -0.8772785533 | O15: =KnownNoiseB*RANDBETWEEN(0,100)/100 + KnownAmplitudeB*COS(2*PI()*KnownFrequencyB*time+KnownPhaseB) -> 0.6855520764 | P15: =UnknownNoiseB*RANDBETWEEN(0,100)/100 + UnknownAmplitudeB*COS(2*PI()*UnknownFrequencyB*time+UnknownPhaseB) -> -0.3264412387
J16: =J15+1/samplesPerNanosecond -> 3.666666667 | L16: =KnownNoiseA*RANDBETWEEN(0,100)/100 + KnownAmplitudeA*COS(2*PI()*KnownFrequencyA*time+KnownPhaseA) -> 0.5648032695 | M16: =UnknownNoiseA*RANDBETWEEN(0,100)/100 + UnknownAmplitudeA*COS(2*PI()*UnknownFrequencyA*time+UnknownPhaseA) -> -0.9535748867 | O16: =KnownNoiseB*RANDBETWEEN(0,100)/100 + KnownAmplitudeB*COS(2*PI()*KnownFrequencyB*time+KnownPhaseB) -> 0.7305175978 | P16: =UnknownNoiseB*RANDBETWEEN(0,100)/100 + UnknownAmplitudeB*COS(2*PI()*UnknownFrequencyB*time+UnknownPhaseB) -> 0.1364548502
D17: Noise | E17: Amplitude | F17: Frequency | G17: Phase | J17: =J16+1/samplesPerNanosecond -> 4 | L17: =KnownNoiseA*RANDBETWEEN(0,100)/100 + KnownAmplitudeA*COS(2*PI()*KnownFrequencyA*time+KnownPhaseA) -> 0.5714499573 | M17: =UnknownNoiseA*RANDBETWEEN(0,100)/100 + UnknownAmplitudeA*COS(2*PI()*UnknownFrequencyA*time+UnknownPhaseA) -> -0.8487672515 | O17: =KnownNoiseB*RANDBETWEEN(0,100)/100 + KnownAmplitudeB*COS(2*PI()*KnownFrequencyB*time+KnownPhaseB) -> 0.762231367 | P17: =UnknownNoiseB*RANDBETWEEN(0,100)/100 + UnknownAmplitudeB*COS(2*PI()*UnknownFrequencyB*time+UnknownPhaseB) -> 0.5275428574
F18: GHz | G18: ns | J18: =J17+1/samplesPerNanosecond -> 4.333333333 | L18: =KnownNoiseA*RANDBETWEEN(0,100)/100 + KnownAmplitudeA*COS(2*PI()*KnownFrequencyA*time+KnownPhaseA) -> 0.5882151769 | M18: =UnknownNoiseA*RANDBETWEEN(0,100)/100 + UnknownAmplitudeA*COS(2*PI()*UnknownFrequencyA*time+UnknownPhaseA) -> -0.6035216219 | O18: =KnownNoiseB*RANDBETWEEN(0,100)/100 + KnownAmplitudeB*COS(2*PI()*KnownFrequencyB*time+KnownPhaseB) -> 0.8456430101 | P18: =UnknownNoiseB*RANDBETWEEN(0,100)/100 + UnknownAmplitudeB*COS(2*PI()*UnknownFrequencyB*time+UnknownPhaseB) -> 0.9242995401
C19: A's Known Signal | D19: 0.1 | E19: 1 | F19: 0.02 | G19: =G8 -> 1109175.438 | J19: =J18+1/samplesPerNanosecond -> 4.666666667 | L19: =KnownNoiseA*RANDBETWEEN(0,100)/100 + KnownAmplitudeA*COS(2*PI()*KnownFrequencyA*time+KnownPhaseA) -> 0.6570361845 | M19: =UnknownNoiseA*RANDBETWEEN(0,100)/100 + UnknownAmplitudeA*COS(2*PI()*UnknownFrequencyA*time+UnknownPhaseA) -> -0.1754097693 | O19: =KnownNoiseB*RANDBETWEEN(0,100)/100 + KnownAmplitudeB*COS(2*PI()*KnownFrequencyB*time+KnownPhaseB) -> 0.8687044379 | P19: =UnknownNoiseB*RANDBETWEEN(0,100)/100 + UnknownAmplitudeB*COS(2*PI()*UnknownFrequencyB*time+UnknownPhaseB) -> 0.994393213
C20: A's Unknown Signal | D20: 0.1 | E20: 1 | F20: 0.216 | G20: =G9 -> 2692173.394 | J20: =J19+1/samplesPerNanosecond -> 5 | L20: =KnownNoiseA*RANDBETWEEN(0,100)/100 + KnownAmplitudeA*COS(2*PI()*KnownFrequencyA*time+KnownPhaseA) -> 0.7008518916 | M20: =UnknownNoiseA*RANDBETWEEN(0,100)/100 + UnknownAmplitudeA*COS(2*PI()*UnknownFrequencyA*time+UnknownPhaseA) -> 0.221070004 | O20: =KnownNoiseB*RANDBETWEEN(0,100)/100 + KnownAmplitudeB*COS(2*PI()*KnownFrequencyB*time+KnownPhaseB) -> 0.8883699296 | P20: =UnknownNoiseB*RANDBETWEEN(0,100)/100 + UnknownAmplitudeB*COS(2*PI()*UnknownFrequencyB*time+UnknownPhaseB) -> 0.9486266051
J21: =J20+1/samplesPerNanosecond -> 5.333333333 | L21: =KnownNoiseA*RANDBETWEEN(0,100)/100 + KnownAmplitudeA*COS(2*PI()*KnownFrequencyA*time+KnownPhaseA) -> 0.6586029743 | M21: =UnknownNoiseA*RANDBETWEEN(0,100)/100 + UnknownAmplitudeA*COS(2*PI()*UnknownFrequencyA*time+UnknownPhaseA) -> 0.7106882777 | O21: =KnownNoiseB*RANDBETWEEN(0,100)/100 + KnownAmplitudeB*COS(2*PI()*KnownFrequencyB*time+KnownPhaseB) -> 0.9165962137 | P21: =UnknownNoiseB*RANDBETWEEN(0,100)/100 + UnknownAmplitudeB*COS(2*PI()*UnknownFrequencyB*time+UnknownPhaseB) -> 0.7150122351
C22: B's Known Signal | D22: 0.1 | E22: 1 | F22: 0.02 | G22: =G11 -> 1696069.238 | J22: =J21+1/samplesPerNanosecond -> 5.666666667 | L22: =KnownNoiseA*RANDBETWEEN(0,100)/100 + KnownAmplitudeA*COS(2*PI()*KnownFrequencyA*time+KnownPhaseA) -> 0.7462319763 | M22: =UnknownNoiseA*RANDBETWEEN(0,100)/100 + UnknownAmplitudeA*COS(2*PI()*UnknownFrequencyA*time+UnknownPhaseA) -> 0.9216377259 | O22: =KnownNoiseB*RANDBETWEEN(0,100)/100 + KnownAmplitudeB*COS(2*PI()*KnownFrequencyB*time+KnownPhaseB) -> 0.9313425436 | P22: =UnknownNoiseB*RANDBETWEEN(0,100)/100 + UnknownAmplitudeB*COS(2*PI()*UnknownFrequencyB*time+UnknownPhaseB) -> 0.3957579981
C23: B's Unknown Signal | D23: 0.1 | E23: 1 | F23: 0.216 | G23: =G12 -> 2961390.734 | J23: =J22+1/samplesPerNanosecond -> 6 | L23: =KnownNoiseA*RANDBETWEEN(0,100)/100 + KnownAmplitudeA*COS(2*PI()*KnownFrequencyA*time+KnownPhaseA) -> 0.7286834091 | M23: =UnknownNoiseA*RANDBETWEEN(0,100)/100 + UnknownAmplitudeA*COS(2*PI()*UnknownFrequencyA*time+UnknownPhaseA) -> 1.042991892 | O23: =KnownNoiseB*RANDBETWEEN(0,100)/100 + KnownAmplitudeB*COS(2*PI()*KnownFrequencyB*time+KnownPhaseB) -> 0.9565707684 | P23: =UnknownNoiseB*RANDBETWEEN(0,100)/100 + UnknownAmplitudeB*COS(2*PI()*UnknownFrequencyB*time+UnknownPhaseB) -> -0.05843175845
J24: =J23+1/samplesPerNanosecond -> 6.333333333 | L24: =KnownNoiseA*RANDBETWEEN(0,100)/100 + KnownAmplitudeA*COS(2*PI()*KnownFrequencyA*time+KnownPhaseA) -> 0.7649038508 | M24: =UnknownNoiseA*RANDBETWEEN(0,100)/100 + UnknownAmplitudeA*COS(2*PI()*UnknownFrequencyA*time+UnknownPhaseA) -> 0.9891581922 | O24: =KnownNoiseB*RANDBETWEEN(0,100)/100 + KnownAmplitudeB*COS(2*PI()*KnownFrequencyB*time+KnownPhaseB) -> 0.9332454012 | P24: =UnknownNoiseB*RANDBETWEEN(0,100)/100 + UnknownAmplitudeB*COS(2*PI()*UnknownFrequencyB*time+UnknownPhaseB) -> -0.4897883417
F25: Phase Difference Between the Known Signal Common to A and B | G25: =ABS(KnownPhaseA-KnownPhaseB) -> 586893.8 | J25: =J24+1/samplesPerNanosecond -> 6.666666667 | L25: =KnownNoiseA*RANDBETWEEN(0,100)/100 + KnownAmplitudeA*COS(2*PI()*KnownFrequencyA*time+KnownPhaseA) -> 0.8068420389 | M25: =UnknownNoiseA*RANDBETWEEN(0,100)/100 + UnknownAmplitudeA*COS(2*PI()*UnknownFrequencyA*time+UnknownPhaseA) -> 0.6980209291 | O25: =KnownNoiseB*RANDBETWEEN(0,100)/100 + KnownAmplitudeB*COS(2*PI()*KnownFrequencyB*time+KnownPhaseB) -> 0.9513336804 | P25: =UnknownNoiseB*RANDBETWEEN(0,100)/100 + UnknownAmplitudeB*COS(2*PI()*UnknownFrequencyB*time+UnknownPhaseB) -> -0.7745392324
F26: Phase Difference Between the Unknown Signal Common to A and B | G26: =ABS(UnknownPhaseA-UnknownPhaseB) -> 269217.3394 | J26: =J25+1/samplesPerNanosecond -> 7 | L26: =KnownNoiseA*RANDBETWEEN(0,100)/100 + KnownAmplitudeA*COS(2*PI()*KnownFrequencyA*time+KnownPhaseA) -> 0.8394489601 | M26: =UnknownNoiseA*RANDBETWEEN(0,100)/100 + UnknownAmplitudeA*COS(2*PI()*UnknownFrequencyA*time+UnknownPhaseA) -> 0.2619407781 | O26: =KnownNoiseB*RANDBETWEEN(0,100)/100 + KnownAmplitudeB*COS(2*PI()*KnownFrequencyB*time+KnownPhaseB) -> 1.011805627 | P26: =UnknownNoiseB*RANDBETWEEN(0,100)/100 + UnknownAmplitudeB*COS(2*PI()*UnknownFrequencyB*time+UnknownPhaseB) -> -0.9409634259
J27: =J26+1/samplesPerNanosecond -> 7.333333333 | L27: =KnownNoiseA*RANDBETWEEN(0,100)/100 + KnownAmplitudeA*COS(2*PI()*KnownFrequencyA*time+KnownPhaseA) -> 0.846677937 | M27: =UnknownNoiseA*RANDBETWEEN(0,100)/100 + UnknownAmplitudeA*COS(2*PI()*UnknownFrequencyA*time+UnknownPhaseA) -> -0.1965843898 | O27: =KnownNoiseB*RANDBETWEEN(0,100)/100 + KnownAmplitudeB*COS(2*PI()*KnownFrequencyB*time+KnownPhaseB) -> 0.9896340986 | P27: =UnknownNoiseB*RANDBETWEEN(0,100)/100 + UnknownAmplitudeB*COS(2*PI()*UnknownFrequencyB*time+UnknownPhaseB) -> -0.8530102389
J28: =J27+1/samplesPerNanosecond -> 7.666666667 | L28: =KnownNoiseA*RANDBETWEEN(0,100)/100 + KnownAmplitudeA*COS(2*PI()*KnownFrequencyA*time+KnownPhaseA) -> 0.8864847093 | M28: =UnknownNoiseA*RANDBETWEEN(0,100)/100 + UnknownAmplitudeA*COS(2*PI()*UnknownFrequencyA*time+UnknownPhaseA) -> -0.5483160213 | O28: =KnownNoiseB*RANDBETWEEN(0,100)/100 + KnownAmplitudeB*COS(2*PI()*KnownFrequencyB*time+KnownPhaseB) -> 0.9917948347 | P28: =UnknownNoiseB*RANDBETWEEN(0,100)/100 + UnknownAmplitudeB*COS(2*PI()*UnknownFrequencyB*time+UnknownPhaseB) -> -0.6709428122
C29: samplesPerNanosecond | D29: 3 | J29: =J28+1/samplesPerNanosecond -> 8 | L29: =KnownNoiseA*RANDBETWEEN(0,100)/100 + KnownAmplitudeA*COS(2*PI()*KnownFrequencyA*time+KnownPhaseA) -> 0.9078275118 | M29: =UnknownNoiseA*RANDBETWEEN(0,100)/100 + UnknownAmplitudeA*COS(2*PI()*UnknownFrequencyA*time+UnknownPhaseA) -> -0.8854299313 | O29: =KnownNoiseB*RANDBETWEEN(0,100)/100 + KnownAmplitudeB*COS(2*PI()*KnownFrequencyB*time+KnownPhaseB) -> 0.9812665016 | P29: =UnknownNoiseB*RANDBETWEEN(0,100)/100 + UnknownAmplitudeB*COS(2*PI()*UnknownFrequencyB*time+UnknownPhaseB) -> -0.2068708967
J30: =J29+1/samplesPerNanosecond -> 8.333333333 | L30: =KnownNoiseA*RANDBETWEEN(0,100)/100 + KnownAmplitudeA*COS(2*PI()*KnownFrequencyA*time+KnownPhaseA) -> 0.9186671478 | M30: =UnknownNoiseA*RANDBETWEEN(0,100)/100 + UnknownAmplitudeA*COS(2*PI()*UnknownFrequencyA*time+UnknownPhaseA) -> -0.9107772808 | O30: =KnownNoiseB*RANDBETWEEN(0,100)/100 + KnownAmplitudeB*COS(2*PI()*KnownFrequencyB*time+KnownPhaseB) -> 1.022030728 | P30: =UnknownNoiseB*RANDBETWEEN(0,100)/100 + UnknownAmplitudeB*COS(2*PI()*UnknownFrequencyB*time+UnknownPhaseB) -> 0.2363307045
C31: minimum Sample Buffer Size | D31: =samplesPerNanosecond*G25 -> 1760681.4 | E31: samples | F31: till B sees what A does | J31: =J30+1/samplesPerNanosecond -> 8.666666667 | L31: =KnownNoiseA*RANDBETWEEN(0,100)/100 + KnownAmplitudeA*COS(2*PI()*KnownFrequencyA*time+KnownPhaseA) -> 0.9469670573 | M31: =UnknownNoiseA*RANDBETWEEN(0,100)/100 + UnknownAmplitudeA*COS(2*PI()*UnknownFrequencyA*time+UnknownPhaseA) -> -0.8859799421 | O31: =KnownNoiseB*RANDBETWEEN(0,100)/100 + KnownAmplitudeB*COS(2*PI()*KnownFrequencyB*time+KnownPhaseB) -> 1.054072139 | P31: =UnknownNoiseB*RANDBETWEEN(0,100)/100 + UnknownAmplitudeB*COS(2*PI()*UnknownFrequencyB*time+UnknownPhaseB) -> 0.5966897259
J32: =J31+1/samplesPerNanosecond -> 9 | L32: =KnownNoiseA*RANDBETWEEN(0,100)/100 + KnownAmplitudeA*COS(2*PI()*KnownFrequencyA*time+KnownPhaseA) -> 0.9686933818 | M32: =UnknownNoiseA*RANDBETWEEN(0,100)/100 + UnknownAmplitudeA*COS(2*PI()*UnknownFrequencyA*time+UnknownPhaseA) -> -0.5631279865 | O32: =KnownNoiseB*RANDBETWEEN(0,100)/100 + KnownAmplitudeB*COS(2*PI()*KnownFrequencyB*time+KnownPhaseB) -> 0.9993783819 | P32: =UnknownNoiseB*RANDBETWEEN(0,100)/100 + UnknownAmplitudeB*COS(2*PI()*UnknownFrequencyB*time+UnknownPhaseB) -> 0.8982379159
C33: notice the variation in subsequent runs due to variation in path | J33: =J32+1/samplesPerNanosecond -> 9.333333333 | L33: =KnownNoiseA*RANDBETWEEN(0,100)/100 + KnownAmplitudeA*COS(2*PI()*KnownFrequencyA*time+KnownPhaseA) -> 1.024815023 | M33: =UnknownNoiseA*RANDBETWEEN(0,100)/100 + UnknownAmplitudeA*COS(2*PI()*UnknownFrequencyA*time+UnknownPhaseA) -> -0.1843353941 | O33: =KnownNoiseB*RANDBETWEEN(0,100)/100 + KnownAmplitudeB*COS(2*PI()*KnownFrequencyB*time+KnownPhaseB) -> 1.013940147 | P33: =UnknownNoiseB*RANDBETWEEN(0,100)/100 + UnknownAmplitudeB*COS(2*PI()*UnknownFrequencyB*time+UnknownPhaseB) -> 1.008904567
J34: =J33+1/samplesPerNanosecond -> 9.666666667 | L34: =KnownNoiseA*RANDBETWEEN(0,100)/100 + KnownAmplitudeA*COS(2*PI()*KnownFrequencyA*time+KnownPhaseA) -> 0.953303699 | M34: =UnknownNoiseA*RANDBETWEEN(0,100)/100 + UnknownAmplitudeA*COS(2*PI()*UnknownFrequencyA*time+UnknownPhaseA) -> 0.3449518703 | O34: =KnownNoiseB*RANDBETWEEN(0,100)/100 + KnownAmplitudeB*COS(2*PI()*KnownFrequencyB*time+KnownPhaseB) -> 1.048751186 | P34: =UnknownNoiseB*RANDBETWEEN(0,100)/100 + UnknownAmplitudeB*COS(2*PI()*UnknownFrequencyB*time+UnknownPhaseB) -> 0.9538033001
C35: audio samples to capture a 5 | D35: 5 | E35: second event = | F35: =10000*D35 -> 50000 | G35: samples | J35: =J34+1/samplesPerNanosecond -> 10 | L35: =KnownNoiseA*RANDBETWEEN(0,100)/100 + KnownAmplitudeA*COS(2*PI()*KnownFrequencyA*time+KnownPhaseA) -> 1.023133991 | M35: =UnknownNoiseA*RANDBETWEEN(0,100)/100 + UnknownAmplitudeA*COS(2*PI()*UnknownFrequencyA*time+UnknownPhaseA) -> 0.7375431172 | O35: =KnownNoiseB*RANDBETWEEN(0,100)/100 + KnownAmplitudeB*COS(2*PI()*KnownFrequencyB*time+KnownPhaseB) -> 1.094808321 | P35: =UnknownNoiseB*RANDBETWEEN(0,100)/100 + UnknownAmplitudeB*COS(2*PI()*UnknownFrequencyB*time+UnknownPhaseB) -> 0.6754401332
C36: at | D36: 2 | E36: bytes per sample = | F36: =F35*D36/1000000 -> 0.1 | G36: megabytes | J36: =J35+1/samplesPerNanosecond -> 10.33333333 | L36: =KnownNoiseA*RANDBETWEEN(0,100)/100 + KnownAmplitudeA*COS(2*PI()*KnownFrequencyA*time+KnownPhaseA) -> 1.05828339 | M36: =UnknownNoiseA*RANDBETWEEN(0,100)/100 + UnknownAmplitudeA*COS(2*PI()*UnknownFrequencyA*time+UnknownPhaseA) -> 0.9766483529 | O36: =KnownNoiseB*RANDBETWEEN(0,100)/100 + KnownAmplitudeB*COS(2*PI()*KnownFrequencyB*time+KnownPhaseB) -> 1.009111453 | P36: =UnknownNoiseB*RANDBETWEEN(0,100)/100 + UnknownAmplitudeB*COS(2*PI()*UnknownFrequencyB*time+UnknownPhaseB) -> 0.275795022
C37: RF samples to capture a | E37: second event = | F37: =3000000000*D35 -> 15000000000 | G37: samples | J37: =J36+1/samplesPerNanosecond -> 10.66666667 | L37: =KnownNoiseA*RANDBETWEEN(0,100)/100 + KnownAmplitudeA*COS(2*PI()*KnownFrequencyA*time+KnownPhaseA) -> 0.9987323367 | M37: =UnknownNoiseA*RANDBETWEEN(0,100)/100 + UnknownAmplitudeA*COS(2*PI()*UnknownFrequencyA*time+UnknownPhaseA) -> 1.069931189 | O37: =KnownNoiseB*RANDBETWEEN(0,100)/100 + KnownAmplitudeB*COS(2*PI()*KnownFrequencyB*time+KnownPhaseB) -> 1.047663558 | P37: =UnknownNoiseB*RANDBETWEEN(0,100)/100 + UnknownAmplitudeB*COS(2*PI()*UnknownFrequencyB*time+UnknownPhaseB) -> -0.09313596174
C38: at | D38: 2 | E38: bytes per sample = | F38: =F37*D38/1000000000 -> 30 | G38: gigabytes! | J38: =J37+1/samplesPerNanosecond -> 11 | L38: =KnownNoiseA*RANDBETWEEN(0,100)/100 + KnownAmplitudeA*COS(2*PI()*KnownFrequencyA*time+KnownPhaseA) -> 1.058464254 | M38: =UnknownNoiseA*RANDBETWEEN(0,100)/100 + UnknownAmplitudeA*COS(2*PI()*UnknownFrequencyA*time+UnknownPhaseA) -> 0.9782395616 | O38: =KnownNoiseB*RANDBETWEEN(0,100)/100 + KnownAmplitudeB*COS(2*PI()*KnownFrequencyB*time+KnownPhaseB) -> 1.058470686 | P38: =UnknownNoiseB*RANDBETWEEN(0,100)/100 + UnknownAmplitudeB*COS(2*PI()*UnknownFrequencyB*time+UnknownPhaseB) -> -0.5252338085
J39: =J38+1/samplesPerNanosecond -> 11.33333333 | L39: =KnownNoiseA*RANDBETWEEN(0,100)/100 + KnownAmplitudeA*COS(2*PI()*KnownFrequencyA*time+KnownPhaseA) -> 1.004465578 | M39: =UnknownNoiseA*RANDBETWEEN(0,100)/100 + UnknownAmplitudeA*COS(2*PI()*UnknownFrequencyA*time+UnknownPhaseA) -> 0.6778553586 | O39: =KnownNoiseB*RANDBETWEEN(0,100)/100 + KnownAmplitudeB*COS(2*PI()*KnownFrequencyB*time+KnownPhaseB) -> 1.020541945 | P39: =UnknownNoiseB*RANDBETWEEN(0,100)/100 + UnknownAmplitudeB*COS(2*PI()*UnknownFrequencyB*time+UnknownPhaseB) -> -0.8583875701
E40: audio storage channel bandwidth required = | F40: =F36/D35 -> 0.02 | G40: megabytes per second | J40: =J39+1/samplesPerNanosecond -> 11.66666667 | L40: =KnownNoiseA*RANDBETWEEN(0,100)/100 + KnownAmplitudeA*COS(2*PI()*KnownFrequencyA*time+KnownPhaseA) -> 1.015725781 | M40: =UnknownNoiseA*RANDBETWEEN(0,100)/100 + UnknownAmplitudeA*COS(2*PI()*UnknownFrequencyA*time+UnknownPhaseA) -> 0.2556091586 | O40: =KnownNoiseB*RANDBETWEEN(0,100)/100 + KnownAmplitudeB*COS(2*PI()*KnownFrequencyB*time+KnownPhaseB) -> 1.070889493 | P40: =UnknownNoiseB*RANDBETWEEN(0,100)/100 + UnknownAmplitudeB*COS(2*PI()*UnknownFrequencyB*time+UnknownPhaseB) -> -0.9542154099
E41: RF storage channel bandwidth required = | F41: =F38/D35 *1000 -> 6000 | G41: megabytes per second | J41: =J40+1/samplesPerNanosecond -> 12 | L41: =KnownNoiseA*RANDBETWEEN(0,100)/100 + KnownAmplitudeA*COS(2*PI()*KnownFrequencyA*time+KnownPhaseA) -> 1.005237387 | M41: =UnknownNoiseA*RANDBETWEEN(0,100)/100 + UnknownAmplitudeA*COS(2*PI()*UnknownFrequencyA*time+UnknownPhaseA) -> -0.2201570545 | O41: =KnownNoiseB*RANDBETWEEN(0,100)/100 + KnownAmplitudeB*COS(2*PI()*KnownFrequencyB*time+KnownPhaseB) -> 1.062528507 | P41: =UnknownNoiseB*RANDBETWEEN(0,100)/100 + UnknownAmplitudeB*COS(2*PI()*UnknownFrequencyB*time+UnknownPhaseB) -> -0.8810116042
J42: =J41+1/samplesPerNanosecond -> 12.33333333 | L42: =KnownNoiseA*RANDBETWEEN(0,100)/100 + KnownAmplitudeA*COS(2*PI()*KnownFrequencyA*time+KnownPhaseA) -> 1.054995992 | M42: =UnknownNoiseA*RANDBETWEEN(0,100)/100 + UnknownAmplitudeA*COS(2*PI()*UnknownFrequencyA*time+UnknownPhaseA) -> -0.6223574213 | O42: =KnownNoiseB*RANDBETWEEN(0,100)/100 + KnownAmplitudeB*COS(2*PI()*KnownFrequencyB*time+KnownPhaseB) -> 0.9714771643 | P42: =UnknownNoiseB*RANDBETWEEN(0,100)/100 + UnknownAmplitudeB*COS(2*PI()*UnknownFrequencyB*time+UnknownPhaseB) -> -0.5785158847
J43: =J42+1/samplesPerNanosecond -> 12.66666667 | L43: =KnownNoiseA*RANDBETWEEN(0,100)/100 + KnownAmplitudeA*COS(2*PI()*KnownFrequencyA*time+KnownPhaseA) -> 1.000000264 | M43: =UnknownNoiseA*RANDBETWEEN(0,100)/100 + UnknownAmplitudeA*COS(2*PI()*UnknownFrequencyA*time+UnknownPhaseA) -> -0.8892865367 | O43: =KnownNoiseB*RANDBETWEEN(0,100)/100 + KnownAmplitudeB*COS(2*PI()*KnownFrequencyB*time+KnownPhaseB) -> 0.9977566077 | P43: =UnknownNoiseB*RANDBETWEEN(0,100)/100 + UnknownAmplitudeB*COS(2*PI()*UnknownFrequencyB*time+UnknownPhaseB) -> -0.2115455805
J44: =J43+1/samplesPerNanosecond -> 13 | L44: =KnownNoiseA*RANDBETWEEN(0,100)/100 + KnownAmplitudeA*COS(2*PI()*KnownFrequencyA*time+KnownPhaseA) -> 1.06325195 | M44: =UnknownNoiseA*RANDBETWEEN(0,100)/100 + UnknownAmplitudeA*COS(2*PI()*UnknownFrequencyA*time+UnknownPhaseA) -> -0.9324541507 | O44: =KnownNoiseB*RANDBETWEEN(0,100)/100 + KnownAmplitudeB*COS(2*PI()*KnownFrequencyB*time+KnownPhaseB) -> 0.9283909074 | P44: =UnknownNoiseB*RANDBETWEEN(0,100)/100 + UnknownAmplitudeB*COS(2*PI()*UnknownFrequencyB*time+UnknownPhaseB) -> 0.2638318626
C45: an immediate result appears: because of the enormous variation in atmospheric propagation | J45: =J44+1/samplesPerNanosecond -> 13.33333333 | L45: =KnownNoiseA*RANDBETWEEN(0,100)/100 + KnownAmplitudeA*COS(2*PI()*KnownFrequencyA*time+KnownPhaseA) -> 1.069755871 | M45: =UnknownNoiseA*RANDBETWEEN(0,100)/100 + UnknownAmplitudeA*COS(2*PI()*UnknownFrequencyA*time+UnknownPhaseA) -> -0.8599444661 | O45: =KnownNoiseB*RANDBETWEEN(0,100)/100 + KnownAmplitudeB*COS(2*PI()*KnownFrequencyB*time+KnownPhaseB) -> 0.98440702 | P45: =UnknownNoiseB*RANDBETWEEN(0,100)/100 + UnknownAmplitudeB*COS(2*PI()*UnknownFrequencyB*time+UnknownPhaseB) -> 0.6184076131
C46: you cannot easily use ionospheric relay for timing observations | J46: =J45+1/samplesPerNanosecond -> 13.66666667 | L46: =KnownNoiseA*RANDBETWEEN(0,100)/100 + KnownAmplitudeA*COS(2*PI()*KnownFrequencyA*time+KnownPhaseA) -> 1.004519916 | M46: =UnknownNoiseA*RANDBETWEEN(0,100)/100 + UnknownAmplitudeA*COS(2*PI()*UnknownFrequencyA*time+UnknownPhaseA) -> -0.5082158499 | O46: =KnownNoiseB*RANDBETWEEN(0,100)/100 + KnownAmplitudeB*COS(2*PI()*KnownFrequencyB*time+KnownPhaseB) -> 0.973834741 | P46: =UnknownNoiseB*RANDBETWEEN(0,100)/100 + UnknownAmplitudeB*COS(2*PI()*UnknownFrequencyB*time+UnknownPhaseB) -> 0.9609805211
J47: =J46+1/samplesPerNanosecond -> 14 | L47: =KnownNoiseA*RANDBETWEEN(0,100)/100 + KnownAmplitudeA*COS(2*PI()*KnownFrequencyA*time+KnownPhaseA) -> 0.9795550238 | M47: =UnknownNoiseA*RANDBETWEEN(0,100)/100 + UnknownAmplitudeA*COS(2*PI()*UnknownFrequencyA*time+UnknownPhaseA) -> -0.07077768919 | O47: =KnownNoiseB*RANDBETWEEN(0,100)/100 + KnownAmplitudeB*COS(2*PI()*KnownFrequencyB*time+KnownPhaseB) -> 0.8727066525 | P47: =UnknownNoiseB*RANDBETWEEN(0,100)/100 + UnknownAmplitudeB*COS(2*PI()*UnknownFrequencyB*time+UnknownPhaseB) -> 1.096895127
C48: use GPS. | J48: =J47+1/samplesPerNanosecond -> 14.33333333 | L48: =KnownNoiseA*RANDBETWEEN(0,100)/100 + KnownAmplitudeA*COS(2*PI()*KnownFrequencyA*time+KnownPhaseA) -> 1.021875168 | M48: =UnknownNoiseA*RANDBETWEEN(0,100)/100 + UnknownAmplitudeA*COS(2*PI()*UnknownFrequencyA*time+UnknownPhaseA) -> 0.3161846539 | O48: =KnownNoiseB*RANDBETWEEN(0,100)/100 + KnownAmplitudeB*COS(2*PI()*KnownFrequencyB*time+KnownPhaseB) -> 0.9420580661 | P48: =UnknownNoiseB*RANDBETWEEN(0,100)/100 + UnknownAmplitudeB*COS(2*PI()*UnknownFrequencyB*time+UnknownPhaseB) -> 0.9856413357
J49: =J48+1/samplesPerNanosecond -> 14.66666667 | L49: =KnownNoiseA*RANDBETWEEN(0,100)/100 + KnownAmplitudeA*COS(2*PI()*KnownFrequencyA*time+KnownPhaseA) -> 1.00449733 | M49: =UnknownNoiseA*RANDBETWEEN(0,100)/100 + UnknownAmplitudeA*COS(2*PI()*UnknownFrequencyA*time+UnknownPhaseA) -> 0.76474705 | O49: =KnownNoiseB*RANDBETWEEN(0,100)/100 + KnownAmplitudeB*COS(2*PI()*KnownFrequencyB*time+KnownPhaseB) -> 0.8429269607 | P49: =UnknownNoiseB*RANDBETWEEN(0,100)/100 + UnknownAmplitudeB*COS(2*PI()*UnknownFrequencyB*time+UnknownPhaseB) -> 0.6401820196
C50: even with GPS, you must keep a huge buffer of samples running extremely rapidly | J50: =J49+1/samplesPerNanosecond -> 15 | L50: =KnownNoiseA*RANDBETWEEN(0,100)/100 + KnownAmplitudeA*COS(2*PI()*KnownFrequencyA*time+KnownPhaseA) -> 0.9644414712 | M50: =UnknownNoiseA*RANDBETWEEN(0,100)/100 + UnknownAmplitudeA*COS(2*PI()*UnknownFrequencyA*time+UnknownPhaseA) -> 0.9703383946 | O50: =KnownNoiseB*RANDBETWEEN(0,100)/100 + KnownAmplitudeB*COS(2*PI()*KnownFrequencyB*time+KnownPhaseB) -> 0.841353916 | P50: =UnknownNoiseB*RANDBETWEEN(0,100)/100 + UnknownAmplitudeB*COS(2*PI()*UnknownFrequencyB*time+UnknownPhaseB) -> 0.2571378894
C51: if you trigger an even as interesting, it must look back in the buffer for the latency of your trigger | J51: =J50+1/samplesPerNanosecond -> 15.33333333 | L51: =KnownNoiseA*RANDBETWEEN(0,100)/100 + KnownAmplitudeA*COS(2*PI()*KnownFrequencyA*time+KnownPhaseA) -> 0.9497304952 | M51: =UnknownNoiseA*RANDBETWEEN(0,100)/100 + UnknownAmplitudeA*COS(2*PI()*UnknownFrequencyA*time+UnknownPhaseA) -> 1.005347099 | O51: =KnownNoiseB*RANDBETWEEN(0,100)/100 + KnownAmplitudeB*COS(2*PI()*KnownFrequencyB*time+KnownPhaseB) -> 0.7893820417 | P51: =UnknownNoiseB*RANDBETWEEN(0,100)/100 + UnknownAmplitudeB*COS(2*PI()*UnknownFrequencyB*time+UnknownPhaseB) -> -0.1844028086
C52: this is six gigabytes for every second of latency! | J52: =J51+1/samplesPerNanosecond -> 15.66666667 | L52: =KnownNoiseA*RANDBETWEEN(0,100)/100 + KnownAmplitudeA*COS(2*PI()*KnownFrequencyA*time+KnownPhaseA) -> 0.9273902103 | M52: =UnknownNoiseA*RANDBETWEEN(0,100)/100 + UnknownAmplitudeA*COS(2*PI()*UnknownFrequencyA*time+UnknownPhaseA) -> 0.9311024216 | O52: =KnownNoiseB*RANDBETWEEN(0,100)/100 + KnownAmplitudeB*COS(2*PI()*KnownFrequencyB*time+KnownPhaseB) -> 0.8330569011 | P52: =UnknownNoiseB*RANDBETWEEN(0,100)/100 + UnknownAmplitudeB*COS(2*PI()*UnknownFrequencyB*time+UnknownPhaseB) -> -0.5991983978
J53: =J52+1/samplesPerNanosecond -> 16 | L53: =KnownNoiseA*RANDBETWEEN(0,100)/100 + KnownAmplitudeA*COS(2*PI()*KnownFrequencyA*time+KnownPhaseA) -> 0.937449283 | M53: =UnknownNoiseA*RANDBETWEEN(0,100)/100 + UnknownAmplitudeA*COS(2*PI()*UnknownFrequencyA*time+UnknownPhaseA) -> 0.558222497 | O53: =KnownNoiseB*RANDBETWEEN(0,100)/100 + KnownAmplitudeB*COS(2*PI()*KnownFrequencyB*time+KnownPhaseB) -> 0.7274264319 | P53: =UnknownNoiseB*RANDBETWEEN(0,100)/100 + UnknownAmplitudeB*COS(2*PI()*UnknownFrequencyB*time+UnknownPhaseB) -> -0.8670094464
C54: do some latency testing, how long does it take you to trigger an RF recording. | J54: =J53+1/samplesPerNanosecond -> 16.33333333 | L54: =KnownNoiseA*RANDBETWEEN(0,100)/100 + KnownAmplitudeA*COS(2*PI()*KnownFrequencyA*time+KnownPhaseA) -> 0.9739391877 | M54: =UnknownNoiseA*RANDBETWEEN(0,100)/100 + UnknownAmplitudeA*COS(2*PI()*UnknownFrequencyA*time+UnknownPhaseA) -> 0.2048566695 | O54: =KnownNoiseB*RANDBETWEEN(0,100)/100 + KnownAmplitudeB*COS(2*PI()*KnownFrequencyB*time+KnownPhaseB) -> 0.6855408617 | P54: =UnknownNoiseB*RANDBETWEEN(0,100)/100 + UnknownAmplitudeB*COS(2*PI()*UnknownFrequencyB*time+UnknownPhaseB) -> -0.9109432891
C55: that’s ALL you're doing. RF recordings, common feature identification, and time difference between common features. | J55: =J54+1/samplesPerNanosecond -> 16.66666667 | L55: =KnownNoiseA*RANDBETWEEN(0,100)/100 + KnownAmplitudeA*COS(2*PI()*KnownFrequencyA*time+KnownPhaseA) -> 0.9138941517 | M55: =UnknownNoiseA*RANDBETWEEN(0,100)/100 + UnknownAmplitudeA*COS(2*PI()*UnknownFrequencyA*time+UnknownPhaseA) -> -0.2550194922 | O55: =KnownNoiseB*RANDBETWEEN(0,100)/100 + KnownAmplitudeB*COS(2*PI()*KnownFrequencyB*time+KnownPhaseB) -> 0.7264526198 | P55: =UnknownNoiseB*RANDBETWEEN(0,100)/100 + UnknownAmplitudeB*COS(2*PI()*UnknownFrequencyB*time+UnknownPhaseB) -> -0.8826990448
J56: =J55+1/samplesPerNanosecond -> 17 | L56: =KnownNoiseA*RANDBETWEEN(0,100)/100 + KnownAmplitudeA*COS(2*PI()*KnownFrequencyA*time+KnownPhaseA) -> 0.8363510953 | M56: =UnknownNoiseA*RANDBETWEEN(0,100)/100 + UnknownAmplitudeA*COS(2*PI()*UnknownFrequencyA*time+UnknownPhaseA) -> -0.6497003881 | O56: =KnownNoiseB*RANDBETWEEN(0,100)/100 + KnownAmplitudeB*COS(2*PI()*KnownFrequencyB*time+KnownPhaseB) -> 0.6472162457 | P56: =UnknownNoiseB*RANDBETWEEN(0,100)/100 + UnknownAmplitudeB*COS(2*PI()*UnknownFrequencyB*time+UnknownPhaseB) -> -0.5544507497
J57: =J56+1/samplesPerNanosecond -> 17.33333333 | L57: =KnownNoiseA*RANDBETWEEN(0,100)/100 + KnownAmplitudeA*COS(2*PI()*KnownFrequencyA*time+KnownPhaseA) -> 0.8913495666 | M57: =UnknownNoiseA*RANDBETWEEN(0,100)/100 + UnknownAmplitudeA*COS(2*PI()*UnknownFrequencyA*time+UnknownPhaseA) -> -0.9257982095 | O57: =KnownNoiseB*RANDBETWEEN(0,100)/100 + KnownAmplitudeB*COS(2*PI()*KnownFrequencyB*time+KnownPhaseB) -> 0.6518882929 | P57: =UnknownNoiseB*RANDBETWEEN(0,100)/100 + UnknownAmplitudeB*COS(2*PI()*UnknownFrequencyB*time+UnknownPhaseB) -> -0.1645873648
J58: =J57+1/samplesPerNanosecond -> 17.66666667 | L58: =KnownNoiseA*RANDBETWEEN(0,100)/100 + KnownAmplitudeA*COS(2*PI()*KnownFrequencyA*time+KnownPhaseA) -> 0.8569316723 | M58: =UnknownNoiseA*RANDBETWEEN(0,100)/100 + UnknownAmplitudeA*COS(2*PI()*UnknownFrequencyA*time+UnknownPhaseA) -> -0.9476113649 | O58: =KnownNoiseB*RANDBETWEEN(0,100)/100 + KnownAmplitudeB*COS(2*PI()*KnownFrequencyB*time+KnownPhaseB) -> 0.5575272297 | P58: =UnknownNoiseB*RANDBETWEEN(0,100)/100 + UnknownAmplitudeB*COS(2*PI()*UnknownFrequencyB*time+UnknownPhaseB) -> 0.3468332802
J59: =J58+1/samplesPerNanosecond -> 18 | L59: =KnownNoiseA*RANDBETWEEN(0,100)/100 + KnownAmplitudeA*COS(2*PI()*KnownFrequencyA*time+KnownPhaseA) -> 0.7781420043 | M59: =UnknownNoiseA*RANDBETWEEN(0,100)/100 + UnknownAmplitudeA*COS(2*PI()*UnknownFrequencyA*time+UnknownPhaseA) -> -0.8377215393 | O59: =KnownNoiseB*RANDBETWEEN(0,100)/100 + KnownAmplitudeB*COS(2*PI()*KnownFrequencyB*time+KnownPhaseB) -> 0.6191933375 | P59: =UnknownNoiseB*RANDBETWEEN(0,100)/100 + UnknownAmplitudeB*COS(2*PI()*UnknownFrequencyB*time+UnknownPhaseB) -> 0.6555936621
J60: =J59+1/samplesPerNanosecond -> 18.33333333 | L60: =KnownNoiseA*RANDBETWEEN(0,100)/100 + KnownAmplitudeA*COS(2*PI()*KnownFrequencyA*time+KnownPhaseA) -> 0.8150275604 | M60: =UnknownNoiseA*RANDBETWEEN(0,100)/100 + UnknownAmplitudeA*COS(2*PI()*UnknownFrequencyA*time+UnknownPhaseA) -> -0.4988885596 | O60: =KnownNoiseB*RANDBETWEEN(0,100)/100 + KnownAmplitudeB*COS(2*PI()*KnownFrequencyB*time+KnownPhaseB) -> 0.4879486036 | P60: =UnknownNoiseB*RANDBETWEEN(0,100)/100 + UnknownAmplitudeB*COS(2*PI()*UnknownFrequencyB*time+UnknownPhaseB) -> 0.9694673799
J61: =J60+1/samplesPerNanosecond -> 18.66666667 | L61: =KnownNoiseA*RANDBETWEEN(0,100)/100 + KnownAmplitudeA*COS(2*PI()*KnownFrequencyA*time+KnownPhaseA) -> 0.7596376633 | M61: =UnknownNoiseA*RANDBETWEEN(0,100)/100 + UnknownAmplitudeA*COS(2*PI()*UnknownFrequencyA*time+UnknownPhaseA) -> -0.08386184105 | O61: =KnownNoiseB*RANDBETWEEN(0,100)/100 + KnownAmplitudeB*COS(2*PI()*KnownFrequencyB*time+KnownPhaseB) -> 0.512856614 | P61: =UnknownNoiseB*RANDBETWEEN(0,100)/100 + UnknownAmplitudeB*COS(2*PI()*UnknownFrequencyB*time+UnknownPhaseB) -> 1.017359866
J62: =J61+1/samplesPerNanosecond -> 19 | L62: =KnownNoiseA*RANDBETWEEN(0,100)/100 + KnownAmplitudeA*COS(2*PI()*KnownFrequencyA*time+KnownPhaseA) -> 0.7550238727 | M62: =UnknownNoiseA*RANDBETWEEN(0,100)/100 + UnknownAmplitudeA*COS(2*PI()*UnknownFrequencyA*time+UnknownPhaseA) -> 0.4256465146 | O62: =KnownNoiseB*RANDBETWEEN(0,100)/100 + KnownAmplitudeB*COS(2*PI()*KnownFrequencyB*time+KnownPhaseB) -> 0.4579824403 | P62: =UnknownNoiseB*RANDBETWEEN(0,100)/100 + UnknownAmplitudeB*COS(2*PI()*UnknownFrequencyB*time+UnknownPhaseB) -> 0.8991916427
J63: =J62+1/samplesPerNanosecond -> 19.33333333 | L63: =KnownNoiseA*RANDBETWEEN(0,100)/100 + KnownAmplitudeA*COS(2*PI()*KnownFrequencyA*time+KnownPhaseA) -> 0.6922398954 | M63: =UnknownNoiseA*RANDBETWEEN(0,100)/100 + UnknownAmplitudeA*COS(2*PI()*UnknownFrequencyA*time+UnknownPhaseA) -> 0.8152060959 | O63: =KnownNoiseB*RANDBETWEEN(0,100)/100 + KnownAmplitudeB*COS(2*PI()*KnownFrequencyB*time+KnownPhaseB) -> 0.4113925266 | P63: =UnknownNoiseB*RANDBETWEEN(0,100)/100 + UnknownAmplitudeB*COS(2*PI()*UnknownFrequencyB*time+UnknownPhaseB) -> 0.6013345376
J64: =J63+1/samplesPerNanosecond -> 19.66666667 | L64: =KnownNoiseA*RANDBETWEEN(0,100)/100 + KnownAmplitudeA*COS(2*PI()*KnownFrequencyA*time+KnownPhaseA) -> 0.6243414916 | M64: =UnknownNoiseA*RANDBETWEEN(0,100)/100 + UnknownAmplitudeA*COS(2*PI()*UnknownFrequencyA*time+UnknownPhaseA) -> 1.035660638 | O64: =KnownNoiseB*RANDBETWEEN(0,100)/100 + KnownAmplitudeB*COS(2*PI()*KnownFrequencyB*time+KnownPhaseB) -> 0.3431545731 | P64: =UnknownNoiseB*RANDBETWEEN(0,100)/100 + UnknownAmplitudeB*COS(2*PI()*UnknownFrequencyB*time+UnknownPhaseB) -> 0.2569095133
J65: =J64+1/samplesPerNanosecond -> 20 | L65: =KnownNoiseA*RANDBETWEEN(0,100)/100 + KnownAmplitudeA*COS(2*PI()*KnownFrequencyA*time+KnownPhaseA) -> 0.596386376 | M65: =UnknownNoiseA*RANDBETWEEN(0,100)/100 + UnknownAmplitudeA*COS(2*PI()*UnknownFrequencyA*time+UnknownPhaseA) -> 1.019248676 | O65: =KnownNoiseB*RANDBETWEEN(0,100)/100 + KnownAmplitudeB*COS(2*PI()*KnownFrequencyB*time+KnownPhaseB) -> 0.3013374161 | P65: =UnknownNoiseB*RANDBETWEEN(0,100)/100 + UnknownAmplitudeB*COS(2*PI()*UnknownFrequencyB*time+UnknownPhaseB) -> -0.220107847
J66: =J65+1/samplesPerNanosecond -> 20.33333333 | L66: =KnownNoiseA*RANDBETWEEN(0,100)/100 + KnownAmplitudeA*COS(2*PI()*KnownFrequencyA*time+KnownPhaseA) -> 0.6154341177 | M66: =UnknownNoiseA*RANDBETWEEN(0,100)/100 + UnknownAmplitudeA*COS(2*PI()*UnknownFrequencyA*time+UnknownPhaseA) -> 0.8538102709 | O66: =KnownNoiseB*RANDBETWEEN(0,100)/100 + KnownAmplitudeB*COS(2*PI()*KnownFrequencyB*time+KnownPhaseB) -> 0.3380109088 | P66: =UnknownNoiseB*RANDBETWEEN(0,100)/100 + UnknownAmplitudeB*COS(2*PI()*UnknownFrequencyB*time+UnknownPhaseB) -> -0.5975811556
J67: =J66+1/samplesPerNanosecond -> 20.66666667 | L67: =KnownNoiseA*RANDBETWEEN(0,100)/100 + KnownAmplitudeA*COS(2*PI()*KnownFrequencyA*time+KnownPhaseA) -> 0.5905460348 | M67: =UnknownNoiseA*RANDBETWEEN(0,100)/100 + UnknownAmplitudeA*COS(2*PI()*UnknownFrequencyA*time+UnknownPhaseA) -> 0.5652275126 | O67: =KnownNoiseB*RANDBETWEEN(0,100)/100 + KnownAmplitudeB*COS(2*PI()*KnownFrequencyB*time+KnownPhaseB) -> 0.2562457974 | P67: =UnknownNoiseB*RANDBETWEEN(0,100)/100 + UnknownAmplitudeB*COS(2*PI()*UnknownFrequencyB*time+UnknownPhaseB) -> -0.9103477163
J68: =J67+1/samplesPerNanosecond -> 21 | L68: =KnownNoiseA*RANDBETWEEN(0,100)/100 + KnownAmplitudeA*COS(2*PI()*KnownFrequencyA*time+KnownPhaseA) -> 0.5207850868 | M68: =UnknownNoiseA*RANDBETWEEN(0,100)/100 + UnknownAmplitudeA*COS(2*PI()*UnknownFrequencyA*time+UnknownPhaseA) -> 0.1558089907 | O68: =KnownNoiseB*RANDBETWEEN(0,100)/100 + KnownAmplitudeB*COS(2*PI()*KnownFrequencyB*time+KnownPhaseB) -> 0.2431135976 | P68: =UnknownNoiseB*RANDBETWEEN(0,100)/100 + UnknownAmplitudeB*COS(2*PI()*UnknownFrequencyB*time+UnknownPhaseB) -> -0.9841452248
J69: =J68+1/samplesPerNanosecond -> 21.33333333 | L69: =KnownNoiseA*RANDBETWEEN(0,100)/100 + KnownAmplitudeA*COS(2*PI()*KnownFrequencyA*time+KnownPhaseA) -> 0.5162157654 | M69: =UnknownNoiseA*RANDBETWEEN(0,100)/100 + UnknownAmplitudeA*COS(2*PI()*UnknownFrequencyA*time+UnknownPhaseA) -> -0.292050798 | O69: =KnownNoiseB*RANDBETWEEN(0,100)/100 + KnownAmplitudeB*COS(2*PI()*KnownFrequencyB*time+KnownPhaseB) -> 0.1906864696 | P69: =UnknownNoiseB*RANDBETWEEN(0,100)/100 + UnknownAmplitudeB*COS(2*PI()*UnknownFrequencyB*time+UnknownPhaseB) -> -0.8271263979
J70: =J69+1/samplesPerNanosecond -> 21.66666667 | L70: =KnownNoiseA*RANDBETWEEN(0,100)/100 + KnownAmplitudeA*COS(2*PI()*KnownFrequencyA*time+KnownPhaseA) -> 0.4649039796 | M70: =UnknownNoiseA*RANDBETWEEN(0,100)/100 + UnknownAmplitudeA*COS(2*PI()*UnknownFrequencyA*time+UnknownPhaseA) -> -0.7352531163 | O70: =KnownNoiseB*RANDBETWEEN(0,100)/100 + KnownAmplitudeB*COS(2*PI()*KnownFrequencyB*time+KnownPhaseB) -> 0.1230370903 | P70: =UnknownNoiseB*RANDBETWEEN(0,100)/100 + UnknownAmplitudeB*COS(2*PI()*UnknownFrequencyB*time+UnknownPhaseB) -> -0.5178460892
J71: =J70+1/samplesPerNanosecond -> 22 | L71: =KnownNoiseA*RANDBETWEEN(0,100)/100 + KnownAmplitudeA*COS(2*PI()*KnownFrequencyA*time+KnownPhaseA) -> 0.4169169415 | M71: =UnknownNoiseA*RANDBETWEEN(0,100)/100 + UnknownAmplitudeA*COS(2*PI()*UnknownFrequencyA*time+UnknownPhaseA) -> -0.861920714 | O71: =KnownNoiseB*RANDBETWEEN(0,100)/100 + KnownAmplitudeB*COS(2*PI()*KnownFrequencyB*time+KnownPhaseB) -> 0.08323852722 | P71: =UnknownNoiseB*RANDBETWEEN(0,100)/100 + UnknownAmplitudeB*COS(2*PI()*UnknownFrequencyB*time+UnknownPhaseB) -> -0.06011992191
J72: =J71+1/samplesPerNanosecond -> 22.33333333 | L72: =KnownNoiseA*RANDBETWEEN(0,100)/100 + KnownAmplitudeA*COS(2*PI()*KnownFrequencyA*time+KnownPhaseA) -> 0.3263230477 | M72: =UnknownNoiseA*RANDBETWEEN(0,100)/100 + UnknownAmplitudeA*COS(2*PI()*UnknownFrequencyA*time+UnknownPhaseA) -> -0.9592611566 | O72: =KnownNoiseB*RANDBETWEEN(0,100)/100 + KnownAmplitudeB*COS(2*PI()*KnownFrequencyB*time+KnownPhaseB) -> 0.002364109095 | P72: =UnknownNoiseB*RANDBETWEEN(0,100)/100 + UnknownAmplitudeB*COS(2*PI()*UnknownFrequencyB*time+UnknownPhaseB) -> 0.3622111759
J73: =J72+1/samplesPerNanosecond -> 22.66666667 | L73: =KnownNoiseA*RANDBETWEEN(0,100)/100 + KnownAmplitudeA*COS(2*PI()*KnownFrequencyA*time+KnownPhaseA) -> 0.3661917588 | M73: =UnknownNoiseA*RANDBETWEEN(0,100)/100 + UnknownAmplitudeA*COS(2*PI()*UnknownFrequencyA*time+UnknownPhaseA) -> -0.777377403 | O73: =KnownNoiseB*RANDBETWEEN(0,100)/100 + KnownAmplitudeB*COS(2*PI()*KnownFrequencyB*time+KnownPhaseB) -> -0.01951270237 | P73: =UnknownNoiseB*RANDBETWEEN(0,100)/100 + UnknownAmplitudeB*COS(2*PI()*UnknownFrequencyB*time+UnknownPhaseB) -> 0.7441488854
J74: =J73+1/samplesPerNanosecond -> 23 | L74: =KnownNoiseA*RANDBETWEEN(0,100)/100 + KnownAmplitudeA*COS(2*PI()*KnownFrequencyA*time+KnownPhaseA) -> 0.2925934795 | M74: =UnknownNoiseA*RANDBETWEEN(0,100)/100 + UnknownAmplitudeA*COS(2*PI()*UnknownFrequencyA*time+UnknownPhaseA) -> -0.4482530377 | O74: =KnownNoiseB*RANDBETWEEN(0,100)/100 + KnownAmplitudeB*COS(2*PI()*KnownFrequencyB*time+KnownPhaseB) -> 0.006681559444 | P74: =UnknownNoiseB*RANDBETWEEN(0,100)/100 + UnknownAmplitudeB*COS(2*PI()*UnknownFrequencyB*time+UnknownPhaseB) -> 0.9656442148
J75: =J74+1/samplesPerNanosecond -> 23.33333333 | L75: =KnownNoiseA*RANDBETWEEN(0,100)/100 + KnownAmplitudeA*COS(2*PI()*KnownFrequencyA*time+KnownPhaseA) -> 0.1945994322 | M75: =UnknownNoiseA*RANDBETWEEN(0,100)/100 + UnknownAmplitudeA*COS(2*PI()*UnknownFrequencyA*time+UnknownPhaseA) -> 0.03528605762 | O75: =KnownNoiseB*RANDBETWEEN(0,100)/100 + KnownAmplitudeB*COS(2*PI()*KnownFrequencyB*time+KnownPhaseB) -> -0.04297976446 | P75: =UnknownNoiseB*RANDBETWEEN(0,100)/100 + UnknownAmplitudeB*COS(2*PI()*UnknownFrequencyB*time+UnknownPhaseB) -> 1.033300134
J76: =J75+1/samplesPerNanosecond -> 23.66666667 | L76: =KnownNoiseA*RANDBETWEEN(0,100)/100 + KnownAmplitudeA*COS(2*PI()*KnownFrequencyA*time+KnownPhaseA) -> 0.1862815351 | M76: =UnknownNoiseA*RANDBETWEEN(0,100)/100 + UnknownAmplitudeA*COS(2*PI()*UnknownFrequencyA*time+UnknownPhaseA) -> 0.4752175601 | O76: =KnownNoiseB*RANDBETWEEN(0,100)/100 + KnownAmplitudeB*COS(2*PI()*KnownFrequencyB*time+KnownPhaseB) -> -0.1324235855 | P76: =UnknownNoiseB*RANDBETWEEN(0,100)/100 + UnknownAmplitudeB*COS(2*PI()*UnknownFrequencyB*time+UnknownPhaseB) -> 0.8925109308
J77: =J76+1/samplesPerNanosecond -> 24 | L77: =KnownNoiseA*RANDBETWEEN(0,100)/100 + KnownAmplitudeA*COS(2*PI()*KnownFrequencyA*time+KnownPhaseA) -> 0.1397122735 | M77: =UnknownNoiseA*RANDBETWEEN(0,100)/100 + UnknownAmplitudeA*COS(2*PI()*UnknownFrequencyA*time+UnknownPhaseA) -> 0.8318306821 | O77: =KnownNoiseB*RANDBETWEEN(0,100)/100 + KnownAmplitudeB*COS(2*PI()*KnownFrequencyB*time+KnownPhaseB) -> -0.1915771973 | P77: =UnknownNoiseB*RANDBETWEEN(0,100)/100 + UnknownAmplitudeB*COS(2*PI()*UnknownFrequencyB*time+UnknownPhaseB) -> 0.5959983454
J78: =J77+1/samplesPerNanosecond -> 24.33333333 | L78: =KnownNoiseA*RANDBETWEEN(0,100)/100 + KnownAmplitudeA*COS(2*PI()*KnownFrequencyA*time+KnownPhaseA) -> 0.1559645737 | M78: =UnknownNoiseA*RANDBETWEEN(0,100)/100 + UnknownAmplitudeA*COS(2*PI()*UnknownFrequencyA*time+UnknownPhaseA) -> 1.042573852 | O78: =KnownNoiseB*RANDBETWEEN(0,100)/100 + KnownAmplitudeB*COS(2*PI()*KnownFrequencyB*time+KnownPhaseB) -> -0.2303684028 | P78: =UnknownNoiseB*RANDBETWEEN(0,100)/100 + UnknownAmplitudeB*COS(2*PI()*UnknownFrequencyB*time+UnknownPhaseB) -> 0.1722342484
J79: =J78+1/samplesPerNanosecond -> 24.66666667 | L79: =KnownNoiseA*RANDBETWEEN(0,100)/100 + KnownAmplitudeA*COS(2*PI()*KnownFrequencyA*time+KnownPhaseA) -> 0.09311167593 | M79: =UnknownNoiseA*RANDBETWEEN(0,100)/100 + UnknownAmplitudeA*COS(2*PI()*UnknownFrequencyA*time+UnknownPhaseA) -> 1.055651325 | O79: =KnownNoiseB*RANDBETWEEN(0,100)/100 + KnownAmplitudeB*COS(2*PI()*KnownFrequencyB*time+KnownPhaseB) -> -0.2557256399 | P79: =UnknownNoiseB*RANDBETWEEN(0,100)/100 + UnknownAmplitudeB*COS(2*PI()*UnknownFrequencyB*time+UnknownPhaseB) -> -0.2671280431
J80: =J79+1/samplesPerNanosecond -> 25 | L80: =KnownNoiseA*RANDBETWEEN(0,100)/100 + KnownAmplitudeA*COS(2*PI()*KnownFrequencyA*time+KnownPhaseA) -> 0.0682270039 | M80: =UnknownNoiseA*RANDBETWEEN(0,100)/100 + UnknownAmplitudeA*COS(2*PI()*UnknownFrequencyA*time+UnknownPhaseA) -> 0.8004320517 | O80: =KnownNoiseB*RANDBETWEEN(0,100)/100 + KnownAmplitudeB*COS(2*PI()*KnownFrequencyB*time+KnownPhaseB) -> -0.2295781086 | P80: =UnknownNoiseB*RANDBETWEEN(0,100)/100 + UnknownAmplitudeB*COS(2*PI()*UnknownFrequencyB*time+UnknownPhaseB) -> -0.6702851238
J81: =J80+1/samplesPerNanosecond -> 25.33333333 | L81: =KnownNoiseA*RANDBETWEEN(0,100)/100 + KnownAmplitudeA*COS(2*PI()*KnownFrequencyA*time+KnownPhaseA) -> -0.02861596198 | M81: =UnknownNoiseA*RANDBETWEEN(0,100)/100 + UnknownAmplitudeA*COS(2*PI()*UnknownFrequencyA*time+UnknownPhaseA) -> 0.4619790145 | O81: =KnownNoiseB*RANDBETWEEN(0,100)/100 + KnownAmplitudeB*COS(2*PI()*KnownFrequencyB*time+KnownPhaseB) -> -0.3198558937 | P81: =UnknownNoiseB*RANDBETWEEN(0,100)/100 + UnknownAmplitudeB*COS(2*PI()*UnknownFrequencyB*time+UnknownPhaseB) -> -0.8953510036
J82: =J81+1/samplesPerNanosecond -> 25.66666667 | L82: =KnownNoiseA*RANDBETWEEN(0,100)/100 + KnownAmplitudeA*COS(2*PI()*KnownFrequencyA*time+KnownPhaseA) -> -0.1043438152 | M82: =UnknownNoiseA*RANDBETWEEN(0,100)/100 + UnknownAmplitudeA*COS(2*PI()*UnknownFrequencyA*time+UnknownPhaseA) -> 0.1085925466 | O82: =KnownNoiseB*RANDBETWEEN(0,100)/100 + KnownAmplitudeB*COS(2*PI()*KnownFrequencyB*time+KnownPhaseB) -> -0.394490089 | P82: =UnknownNoiseB*RANDBETWEEN(0,100)/100 + UnknownAmplitudeB*COS(2*PI()*UnknownFrequencyB*time+UnknownPhaseB) -> -0.967825759
J83: =J82+1/samplesPerNanosecond -> 26 | L83: =KnownNoiseA*RANDBETWEEN(0,100)/100 + KnownAmplitudeA*COS(2*PI()*KnownFrequencyA*time+KnownPhaseA) -> -0.1208833511 | M83: =UnknownNoiseA*RANDBETWEEN(0,100)/100 + UnknownAmplitudeA*COS(2*PI()*UnknownFrequencyA*time+UnknownPhaseA) -> -0.3821321673 | O83: =KnownNoiseB*RANDBETWEEN(0,100)/100 + KnownAmplitudeB*COS(2*PI()*KnownFrequencyB*time+KnownPhaseB) -> -0.4064129171 | P83: =UnknownNoiseB*RANDBETWEEN(0,100)/100 + UnknownAmplitudeB*COS(2*PI()*UnknownFrequencyB*time+UnknownPhaseB) -> -0.7933532099
J84: =J83+1/samplesPerNanosecond -> 26.33333333 | L84: =KnownNoiseA*RANDBETWEEN(0,100)/100 + KnownAmplitudeA*COS(2*PI()*KnownFrequencyA*time+KnownPhaseA) -> -0.1411616947 | M84: =UnknownNoiseA*RANDBETWEEN(0,100)/100 + UnknownAmplitudeA*COS(2*PI()*UnknownFrequencyA*time+UnknownPhaseA) -> -0.7069283226 | O84: =KnownNoiseB*RANDBETWEEN(0,100)/100 + KnownAmplitudeB*COS(2*PI()*KnownFrequencyB*time+KnownPhaseB) -> -0.387557848 | P84: =UnknownNoiseB*RANDBETWEEN(0,100)/100 + UnknownAmplitudeB*COS(2*PI()*UnknownFrequencyB*time+UnknownPhaseB) -> -0.4578044741
J85: =J84+1/samplesPerNanosecond -> 26.66666667 | L85: =KnownNoiseA*RANDBETWEEN(0,100)/100 + KnownAmplitudeA*COS(2*PI()*KnownFrequencyA*time+KnownPhaseA) -> -0.2211064302 | M85: =UnknownNoiseA*RANDBETWEEN(0,100)/100 + UnknownAmplitudeA*COS(2*PI()*UnknownFrequencyA*time+UnknownPhaseA) -> -0.8766158493 | O85: =KnownNoiseB*RANDBETWEEN(0,100)/100 + KnownAmplitudeB*COS(2*PI()*KnownFrequencyB*time+KnownPhaseB) -> -0.4298597172 | P85: =UnknownNoiseB*RANDBETWEEN(0,100)/100 + UnknownAmplitudeB*COS(2*PI()*UnknownFrequencyB*time+UnknownPhaseB) -> -0.09626821092
J86: =J85+1/samplesPerNanosecond -> 27 | L86: =KnownNoiseA*RANDBETWEEN(0,100)/100 + KnownAmplitudeA*COS(2*PI()*KnownFrequencyA*time+KnownPhaseA) -> -0.2496457267 | M86: =UnknownNoiseA*RANDBETWEEN(0,100)/100 + UnknownAmplitudeA*COS(2*PI()*UnknownFrequencyA*time+UnknownPhaseA) -> -0.9044220931 | O86: =KnownNoiseB*RANDBETWEEN(0,100)/100 + KnownAmplitudeB*COS(2*PI()*KnownFrequencyB*time+KnownPhaseB) -> -0.480254839 | P86: =UnknownNoiseB*RANDBETWEEN(0,100)/100 + UnknownAmplitudeB*COS(2*PI()*UnknownFrequencyB*time+UnknownPhaseB) -> 0.4278433422
J87: =J86+1/samplesPerNanosecond -> 27.33333333 | L87: =KnownNoiseA*RANDBETWEEN(0,100)/100 + KnownAmplitudeA*COS(2*PI()*KnownFrequencyA*time+KnownPhaseA) -> -0.311708464 | M87: =UnknownNoiseA*RANDBETWEEN(0,100)/100 + UnknownAmplitudeA*COS(2*PI()*UnknownFrequencyA*time+UnknownPhaseA) -> -0.7089836569 | O87: =KnownNoiseB*RANDBETWEEN(0,100)/100 + KnownAmplitudeB*COS(2*PI()*KnownFrequencyB*time+KnownPhaseB) -> -0.574681118 | P87: =UnknownNoiseB*RANDBETWEEN(0,100)/100 + UnknownAmplitudeB*COS(2*PI()*UnknownFrequencyB*time+UnknownPhaseB) -> 0.7809784154
J88: =J87+1/samplesPerNanosecond -> 27.66666667 | L88: =KnownNoiseA*RANDBETWEEN(0,100)/100 + KnownAmplitudeA*COS(2*PI()*KnownFrequencyA*time+KnownPhaseA) -> -0.283224359 | M88: =UnknownNoiseA*RANDBETWEEN(0,100)/100 + UnknownAmplitudeA*COS(2*PI()*UnknownFrequencyA*time+UnknownPhaseA) -> -0.4204195116 | O88: =KnownNoiseB*RANDBETWEEN(0,100)/100 + KnownAmplitudeB*COS(2*PI()*KnownFrequencyB*time+KnownPhaseB) -> -0.5590781591 | P88: =UnknownNoiseB*RANDBETWEEN(0,100)/100 + UnknownAmplitudeB*COS(2*PI()*UnknownFrequencyB*time+UnknownPhaseB) -> 0.9694625834
J89: =J88+1/samplesPerNanosecond -> 28 | L89: =KnownNoiseA*RANDBETWEEN(0,100)/100 + KnownAmplitudeA*COS(2*PI()*KnownFrequencyA*time+KnownPhaseA) -> -0.3601240869 | M89: =UnknownNoiseA*RANDBETWEEN(0,100)/100 + UnknownAmplitudeA*COS(2*PI()*UnknownFrequencyA*time+UnknownPhaseA) -> 0.1015393293 | O89: =KnownNoiseB*RANDBETWEEN(0,100)/100 + KnownAmplitudeB*COS(2*PI()*KnownFrequencyB*time+KnownPhaseB) -> -0.5613873723 | P89: =UnknownNoiseB*RANDBETWEEN(0,100)/100 + UnknownAmplitudeB*COS(2*PI()*UnknownFrequencyB*time+UnknownPhaseB) -> 1.001723662
J90: =J89+1/samplesPerNanosecond -> 28.33333333 | L90: =KnownNoiseA*RANDBETWEEN(0,100)/100 + KnownAmplitudeA*COS(2*PI()*KnownFrequencyA*time+KnownPhaseA) -> -0.3923394045 | M90: =UnknownNoiseA*RANDBETWEEN(0,100)/100 + UnknownAmplitudeA*COS(2*PI()*UnknownFrequencyA*time+UnknownPhaseA) -> 0.4687801468 | O90: =KnownNoiseB*RANDBETWEEN(0,100)/100 + KnownAmplitudeB*COS(2*PI()*KnownFrequencyB*time+KnownPhaseB) -> -0.6595520763 | P90: =UnknownNoiseB*RANDBETWEEN(0,100)/100 + UnknownAmplitudeB*COS(2*PI()*UnknownFrequencyB*time+UnknownPhaseB) -> 0.8766615459
J91: =J90+1/samplesPerNanosecond -> 28.66666667 | L91: =KnownNoiseA*RANDBETWEEN(0,100)/100 + KnownAmplitudeA*COS(2*PI()*KnownFrequencyA*time+KnownPhaseA) -> -0.4578032696 | M91: =UnknownNoiseA*RANDBETWEEN(0,100)/100 + UnknownAmplitudeA*COS(2*PI()*UnknownFrequencyA*time+UnknownPhaseA) -> 0.8415358701 | O91: =KnownNoiseB*RANDBETWEEN(0,100)/100 + KnownAmplitudeB*COS(2*PI()*KnownFrequencyB*time+KnownPhaseB) -> -0.7015175978 | P91: =UnknownNoiseB*RANDBETWEEN(0,100)/100 + UnknownAmplitudeB*COS(2*PI()*UnknownFrequencyB*time+UnknownPhaseB) -> 0.5882778618
J92: =J91+1/samplesPerNanosecond -> 29 | L92: =KnownNoiseA*RANDBETWEEN(0,100)/100 + KnownAmplitudeA*COS(2*PI()*KnownFrequencyA*time+KnownPhaseA) -> -0.4324499572 | M92: =UnknownNoiseA*RANDBETWEEN(0,100)/100 + UnknownAmplitudeA*COS(2*PI()*UnknownFrequencyA*time+UnknownPhaseA) -> 1.06204289 | O92: =KnownNoiseB*RANDBETWEEN(0,100)/100 + KnownAmplitudeB*COS(2*PI()*KnownFrequencyB*time+KnownPhaseB) -> -0.7102313669 | P92: =UnknownNoiseB*RANDBETWEEN(0,100)/100 + UnknownAmplitudeB*COS(2*PI()*UnknownFrequencyB*time+UnknownPhaseB) -> 0.1672375787
J93: =J92+1/samplesPerNanosecond -> 29.33333333 | L93: =KnownNoiseA*RANDBETWEEN(0,100)/100 + KnownAmplitudeA*COS(2*PI()*KnownFrequencyA*time+KnownPhaseA) -> -0.499215177 | M93: =UnknownNoiseA*RANDBETWEEN(0,100)/100 + UnknownAmplitudeA*COS(2*PI()*UnknownFrequencyA*time+UnknownPhaseA) -> 1.041576764 | O93: =KnownNoiseB*RANDBETWEEN(0,100)/100 + KnownAmplitudeB*COS(2*PI()*KnownFrequencyB*time+KnownPhaseB) -> -0.7576430101 | P93: =UnknownNoiseB*RANDBETWEEN(0,100)/100 + UnknownAmplitudeB*COS(2*PI()*UnknownFrequencyB*time+UnknownPhaseB) -> -0.3593420941
J94: =J93+1/samplesPerNanosecond -> 29.66666667 | L94: =KnownNoiseA*RANDBETWEEN(0,100)/100 + KnownAmplitudeA*COS(2*PI()*KnownFrequencyA*time+KnownPhaseA) -> -0.4740361844 | M94: =UnknownNoiseA*RANDBETWEEN(0,100)/100 + UnknownAmplitudeA*COS(2*PI()*UnknownFrequencyA*time+UnknownPhaseA) -> 0.7700419758 | O94: =KnownNoiseB*RANDBETWEEN(0,100)/100 + KnownAmplitudeB*COS(2*PI()*KnownFrequencyB*time+KnownPhaseB) -> -0.7827044378 | P94: =UnknownNoiseB*RANDBETWEEN(0,100)/100 + UnknownAmplitudeB*COS(2*PI()*UnknownFrequencyB*time+UnknownPhaseB) -> -0.6682175852
J95: =J94+1/samplesPerNanosecond -> 30 | L95: =KnownNoiseA*RANDBETWEEN(0,100)/100 + KnownAmplitudeA*COS(2*PI()*KnownFrequencyA*time+KnownPhaseA) -> -0.5408518915 | M95: =UnknownNoiseA*RANDBETWEEN(0,100)/100 + UnknownAmplitudeA*COS(2*PI()*UnknownFrequencyA*time+UnknownPhaseA) -> 0.4885887781 | O95: =KnownNoiseB*RANDBETWEEN(0,100)/100 + KnownAmplitudeB*COS(2*PI()*KnownFrequencyB*time+KnownPhaseB) -> -0.7963699296 | P95: =UnknownNoiseB*RANDBETWEEN(0,100)/100 + UnknownAmplitudeB*COS(2*PI()*UnknownFrequencyB*time+UnknownPhaseB) -> -0.9019738306
J96: =J95+1/samplesPerNanosecond -> 30.33333333 | L96: =KnownNoiseA*RANDBETWEEN(0,100)/100 + KnownAmplitudeA*COS(2*PI()*KnownFrequencyA*time+KnownPhaseA) -> -0.6036029744 | M96: =UnknownNoiseA*RANDBETWEEN(0,100)/100 + UnknownAmplitudeA*COS(2*PI()*UnknownFrequencyA*time+UnknownPhaseA) -> 0.01933418834 | O96: =KnownNoiseB*RANDBETWEEN(0,100)/100 + KnownAmplitudeB*COS(2*PI()*KnownFrequencyB*time+KnownPhaseB) -> -0.7445962138 | P96: =UnknownNoiseB*RANDBETWEEN(0,100)/100 + UnknownAmplitudeB*COS(2*PI()*UnknownFrequencyB*time+UnknownPhaseB) -> -0.9229958032
J97: =J96+1/samplesPerNanosecond -> 30.66666667 | L97: =KnownNoiseA*RANDBETWEEN(0,100)/100 + KnownAmplitudeA*COS(2*PI()*KnownFrequencyA*time+KnownPhaseA) -> -0.6542319762 | M97: =UnknownNoiseA*RANDBETWEEN(0,100)/100 + UnknownAmplitudeA*COS(2*PI()*UnknownFrequencyA*time+UnknownPhaseA) -> -0.4181471937 | O97: =KnownNoiseB*RANDBETWEEN(0,100)/100 + KnownAmplitudeB*COS(2*PI()*KnownFrequencyB*time+KnownPhaseB) -> -0.7823425435 | P97: =UnknownNoiseB*RANDBETWEEN(0,100)/100 + UnknownAmplitudeB*COS(2*PI()*UnknownFrequencyB*time+UnknownPhaseB) -> -0.7514445866
J98: =J97+1/samplesPerNanosecond -> 31 | L98: =KnownNoiseA*RANDBETWEEN(0,100)/100 + KnownAmplitudeA*COS(2*PI()*KnownFrequencyA*time+KnownPhaseA) -> -0.6516834092 | M98: =UnknownNoiseA*RANDBETWEEN(0,100)/100 + UnknownAmplitudeA*COS(2*PI()*UnknownFrequencyA*time+UnknownPhaseA) -> -0.7976434666 | O98: =KnownNoiseB*RANDBETWEEN(0,100)/100 + KnownAmplitudeB*COS(2*PI()*KnownFrequencyB*time+KnownPhaseB) -> -0.8135707685 | P98: =UnknownNoiseB*RANDBETWEEN(0,100)/100 + UnknownAmplitudeB*COS(2*PI()*UnknownFrequencyB*time+UnknownPhaseB) -> -0.4644321052
J99: =J98+1/samplesPerNanosecond -> 31.33333333 | L99: =KnownNoiseA*RANDBETWEEN(0,100)/100 + KnownAmplitudeA*COS(2*PI()*KnownFrequencyA*time+KnownPhaseA) -> -0.6579038509 | M99: =UnknownNoiseA*RANDBETWEEN(0,100)/100 + UnknownAmplitudeA*COS(2*PI()*UnknownFrequencyA*time+UnknownPhaseA) -> -0.9428515465 | O99: =KnownNoiseB*RANDBETWEEN(0,100)/100 + KnownAmplitudeB*COS(2*PI()*KnownFrequencyB*time+KnownPhaseB) -> -0.8442454013 | P99: =UnknownNoiseB*RANDBETWEEN(0,100)/100 + UnknownAmplitudeB*COS(2*PI()*UnknownFrequencyB*time+UnknownPhaseB) -> -0.0001581615591
J100: =J99+1/samplesPerNanosecond -> 31.66666667 | L100: =KnownNoiseA*RANDBETWEEN(0,100)/100 + KnownAmplitudeA*COS(2*PI()*KnownFrequencyA*time+KnownPhaseA) -> -0.7398420388 | M100: =UnknownNoiseA*RANDBETWEEN(0,100)/100 + UnknownAmplitudeA*COS(2*PI()*UnknownFrequencyA*time+UnknownPhaseA) -> -0.8871190288 | O100: =KnownNoiseB*RANDBETWEEN(0,100)/100 + KnownAmplitudeB*COS(2*PI()*KnownFrequencyB*time+KnownPhaseB) -> -0.8453336804 | P100: =UnknownNoiseB*RANDBETWEEN(0,100)/100 + UnknownAmplitudeB*COS(2*PI()*UnknownFrequencyB*time+UnknownPhaseB) -> 0.4566094564
J101: =J100+1/samplesPerNanosecond -> 32 | L101: =KnownNoiseA*RANDBETWEEN(0,100)/100 + KnownAmplitudeA*COS(2*PI()*KnownFrequencyA*time+KnownPhaseA) -> -0.6924489601 | M101: =UnknownNoiseA*RANDBETWEEN(0,100)/100 + UnknownAmplitudeA*COS(2*PI()*UnknownFrequencyA*time+UnknownPhaseA) -> -0.6556170781 | O101: =KnownNoiseB*RANDBETWEEN(0,100)/100 + KnownAmplitudeB*COS(2*PI()*KnownFrequencyB*time+KnownPhaseB) -> -0.8688056272 | P101: =UnknownNoiseB*RANDBETWEEN(0,100)/100 + UnknownAmplitudeB*COS(2*PI()*UnknownFrequencyB*time+UnknownPhaseB) -> 0.8129917438
J102: =J101+1/samplesPerNanosecond -> 32.33333333 | L102: =KnownNoiseA*RANDBETWEEN(0,100)/100 + KnownAmplitudeA*COS(2*PI()*KnownFrequencyA*time+KnownPhaseA) -> -0.744677937 | M102: =UnknownNoiseA*RANDBETWEEN(0,100)/100 + UnknownAmplitudeA*COS(2*PI()*UnknownFrequencyA*time+UnknownPhaseA) -> -0.2905012344 | O102: =KnownNoiseB*RANDBETWEEN(0,100)/100 + KnownAmplitudeB*COS(2*PI()*KnownFrequencyB*time+KnownPhaseB) -> -0.9356340986 | P102: =UnknownNoiseB*RANDBETWEEN(0,100)/100 + UnknownAmplitudeB*COS(2*PI()*UnknownFrequencyB*time+UnknownPhaseB) -> 1.043880001
J103: =J102+1/samplesPerNanosecond -> 32.66666667 | L103: =KnownNoiseA*RANDBETWEEN(0,100)/100 + KnownAmplitudeA*COS(2*PI()*KnownFrequencyA*time+KnownPhaseA) -> -0.8234847093 | M103: =UnknownNoiseA*RANDBETWEEN(0,100)/100 + UnknownAmplitudeA*COS(2*PI()*UnknownFrequencyA*time+UnknownPhaseA) -> 0.09477102994 | O103: =KnownNoiseB*RANDBETWEEN(0,100)/100 + KnownAmplitudeB*COS(2*PI()*KnownFrequencyB*time+KnownPhaseB) -> -0.8867948348 | P103: =UnknownNoiseB*RANDBETWEEN(0,100)/100 + UnknownAmplitudeB*COS(2*PI()*UnknownFrequencyB*time+UnknownPhaseB) -> 1.082644536
J104: =J103+1/samplesPerNanosecond -> 33 | L104: =KnownNoiseA*RANDBETWEEN(0,100)/100 + KnownAmplitudeA*COS(2*PI()*KnownFrequencyA*time+KnownPhaseA) -> -0.7688275118 | M104: =UnknownNoiseA*RANDBETWEEN(0,100)/100 + UnknownAmplitudeA*COS(2*PI()*UnknownFrequencyA*time+UnknownPhaseA) -> 0.4902191804 | O104: =KnownNoiseB*RANDBETWEEN(0,100)/100 + KnownAmplitudeB*COS(2*PI()*KnownFrequencyB*time+KnownPhaseB) -> -0.9672665016 | P104: =UnknownNoiseB*RANDBETWEEN(0,100)/100 + UnknownAmplitudeB*COS(2*PI()*UnknownFrequencyB*time+UnknownPhaseB) -> 0.8217113118
J105: =J104+1/samplesPerNanosecond -> 33.33333333 | L105: =KnownNoiseA*RANDBETWEEN(0,100)/100 + KnownAmplitudeA*COS(2*PI()*KnownFrequencyA*time+KnownPhaseA) -> -0.8676671477 | M105: =UnknownNoiseA*RANDBETWEEN(0,100)/100 + UnknownAmplitudeA*COS(2*PI()*UnknownFrequencyA*time+UnknownPhaseA) -> 0.90024157 | O105: =KnownNoiseB*RANDBETWEEN(0,100)/100 + KnownAmplitudeB*COS(2*PI()*KnownFrequencyB*time+KnownPhaseB) -> -0.9500307283 | P105: =UnknownNoiseB*RANDBETWEEN(0,100)/100 + UnknownAmplitudeB*COS(2*PI()*UnknownFrequencyB*time+UnknownPhaseB) -> 0.5122810022
J106: =J105+1/samplesPerNanosecond -> 33.66666667 | L106: =KnownNoiseA*RANDBETWEEN(0,100)/100 + KnownAmplitudeA*COS(2*PI()*KnownFrequencyA*time+KnownPhaseA) -> -0.8019670573 | M106: =UnknownNoiseA*RANDBETWEEN(0,100)/100 + UnknownAmplitudeA*COS(2*PI()*UnknownFrequencyA*time+UnknownPhaseA) -> 1.014038781 | O106: =KnownNoiseB*RANDBETWEEN(0,100)/100 + KnownAmplitudeB*COS(2*PI()*KnownFrequencyB*time+KnownPhaseB) -> -0.9360721394 | P106: =UnknownNoiseB*RANDBETWEEN(0,100)/100 + UnknownAmplitudeB*COS(2*PI()*UnknownFrequencyB*time+UnknownPhaseB) -> 0.05804580021
J107: =J106+1/samplesPerNanosecond -> 34 | L107: =KnownNoiseA*RANDBETWEEN(0,100)/100 + KnownAmplitudeA*COS(2*PI()*KnownFrequencyA*time+KnownPhaseA) -> -0.8976933818 | M107: =UnknownNoiseA*RANDBETWEEN(0,100)/100 + UnknownAmplitudeA*COS(2*PI()*UnknownFrequencyA*time+UnknownPhaseA) -> 0.9980529673 | O107: =KnownNoiseB*RANDBETWEEN(0,100)/100 + KnownAmplitudeB*COS(2*PI()*KnownFrequencyB*time+KnownPhaseB) -> -0.9103783818 | P107: =UnknownNoiseB*RANDBETWEEN(0,100)/100 + UnknownAmplitudeB*COS(2*PI()*UnknownFrequencyB*time+UnknownPhaseB) -> -0.3286307331
J108: =J107+1/samplesPerNanosecond -> 34.33333333 | L108: =KnownNoiseA*RANDBETWEEN(0,100)/100 + KnownAmplitudeA*COS(2*PI()*KnownFrequencyA*time+KnownPhaseA) -> -0.8518150234 | M108: =UnknownNoiseA*RANDBETWEEN(0,100)/100 + UnknownAmplitudeA*COS(2*PI()*UnknownFrequencyA*time+UnknownPhaseA) -> 0.8287193378 | O108: =KnownNoiseB*RANDBETWEEN(0,100)/100 + KnownAmplitudeB*COS(2*PI()*KnownFrequencyB*time+KnownPhaseB) -> -0.9929401468 | P108: =UnknownNoiseB*RANDBETWEEN(0,100)/100 + UnknownAmplitudeB*COS(2*PI()*UnknownFrequencyB*time+UnknownPhaseB) -> -0.7522902968
J109: =J108+1/samplesPerNanosecond -> 34.66666667 | L109: =KnownNoiseA*RANDBETWEEN(0,100)/100 + KnownAmplitudeA*COS(2*PI()*KnownFrequencyA*time+KnownPhaseA) -> -0.875303699 | M109: =UnknownNoiseA*RANDBETWEEN(0,100)/100 + UnknownAmplitudeA*COS(2*PI()*UnknownFrequencyA*time+UnknownPhaseA) -> 0.3731714632 | O109: =KnownNoiseB*RANDBETWEEN(0,100)/100 + KnownAmplitudeB*COS(2*PI()*KnownFrequencyB*time+KnownPhaseB) -> -0.9897511855 | P109: =UnknownNoiseB*RANDBETWEEN(0,100)/100 + UnknownAmplitudeB*COS(2*PI()*UnknownFrequencyB*time+UnknownPhaseB) -> -0.8761767325
J110: =J109+1/samplesPerNanosecond -> 35 | L110: =KnownNoiseA*RANDBETWEEN(0,100)/100 + KnownAmplitudeA*COS(2*PI()*KnownFrequencyA*time+KnownPhaseA) -> -0.8741339907 | M110: =UnknownNoiseA*RANDBETWEEN(0,100)/100 + UnknownAmplitudeA*COS(2*PI()*UnknownFrequencyA*time+UnknownPhaseA) -> -0.01683912719 | O110: =KnownNoiseB*RANDBETWEEN(0,100)/100 + KnownAmplitudeB*COS(2*PI()*KnownFrequencyB*time+KnownPhaseB) -> -0.999808321 | P110: =UnknownNoiseB*RANDBETWEEN(0,100)/100 + UnknownAmplitudeB*COS(2*PI()*UnknownFrequencyB*time+UnknownPhaseB) -> -0.9586726102
J111: =J110+1/samplesPerNanosecond -> 35.33333333 | L111: =KnownNoiseA*RANDBETWEEN(0,100)/100 + KnownAmplitudeA*COS(2*PI()*KnownFrequencyA*time+KnownPhaseA) -> -0.8712833899 | M111: =UnknownNoiseA*RANDBETWEEN(0,100)/100 + UnknownAmplitudeA*COS(2*PI()*UnknownFrequencyA*time+UnknownPhaseA) -> -0.5029821657 | O111: =KnownNoiseB*RANDBETWEEN(0,100)/100 + KnownAmplitudeB*COS(2*PI()*KnownFrequencyB*time+KnownPhaseB) -> -0.964111453 | P111: =UnknownNoiseB*RANDBETWEEN(0,100)/100 + UnknownAmplitudeB*COS(2*PI()*UnknownFrequencyB*time+UnknownPhaseB) -> -0.7144710273
J112: =J111+1/samplesPerNanosecond -> 35.66666667 | L112: =KnownNoiseA*RANDBETWEEN(0,100)/100 + KnownAmplitudeA*COS(2*PI()*KnownFrequencyA*time+KnownPhaseA) -> -0.9777323366 | M112: =UnknownNoiseA*RANDBETWEEN(0,100)/100 + UnknownAmplitudeA*COS(2*PI()*UnknownFrequencyA*time+UnknownPhaseA) -> -0.8213209594 | O112: =KnownNoiseB*RANDBETWEEN(0,100)/100 + KnownAmplitudeB*COS(2*PI()*KnownFrequencyB*time+KnownPhaseB) -> -0.9306635583 | P112: =UnknownNoiseB*RANDBETWEEN(0,100)/100 + UnknownAmplitudeB*COS(2*PI()*UnknownFrequencyB*time+UnknownPhaseB) -> -0.4098385445
J113: =J112+1/samplesPerNanosecond -> 36 | L113: =KnownNoiseA*RANDBETWEEN(0,100)/100 + KnownAmplitudeA*COS(2*PI()*KnownFrequencyA*time+KnownPhaseA) -> -0.9834642543 | M113: =UnknownNoiseA*RANDBETWEEN(0,100)/100 + UnknownAmplitudeA*COS(2*PI()*UnknownFrequencyA*time+UnknownPhaseA) -> -0.9736019494 | O113: =KnownNoiseB*RANDBETWEEN(0,100)/100 + KnownAmplitudeB*COS(2*PI()*KnownFrequencyB*time+KnownPhaseB) -> -0.8914706857 | P113: =UnknownNoiseB*RANDBETWEEN(0,100)/100 + UnknownAmplitudeB*COS(2*PI()*UnknownFrequencyB*time+UnknownPhaseB) -> 0.07808364385
J114: =J113+1/samplesPerNanosecond -> 36.33333333 | L114: =KnownNoiseA*RANDBETWEEN(0,100)/100 + KnownAmplitudeA*COS(2*PI()*KnownFrequencyA*time+KnownPhaseA) -> -0.9704655784 | M114: =UnknownNoiseA*RANDBETWEEN(0,100)/100 + UnknownAmplitudeA*COS(2*PI()*UnknownFrequencyA*time+UnknownPhaseA) -> -0.8853830422 | O114: =KnownNoiseB*RANDBETWEEN(0,100)/100 + KnownAmplitudeB*COS(2*PI()*KnownFrequencyB*time+KnownPhaseB) -> -0.9155419453 | P114: =UnknownNoiseB*RANDBETWEEN(0,100)/100 + UnknownAmplitudeB*COS(2*PI()*UnknownFrequencyB*time+UnknownPhaseB) -> 0.4683913833
J115: =J114+1/samplesPerNanosecond -> 36.66666667 | L115: =KnownNoiseA*RANDBETWEEN(0,100)/100 + KnownAmplitudeA*COS(2*PI()*KnownFrequencyA*time+KnownPhaseA) -> -0.9867257807 | M115: =UnknownNoiseA*RANDBETWEEN(0,100)/100 + UnknownAmplitudeA*COS(2*PI()*UnknownFrequencyA*time+UnknownPhaseA) -> -0.6443594278 | O115: =KnownNoiseB*RANDBETWEEN(0,100)/100 + KnownAmplitudeB*COS(2*PI()*KnownFrequencyB*time+KnownPhaseB) -> -0.9018894926 | P115: =UnknownNoiseB*RANDBETWEEN(0,100)/100 + UnknownAmplitudeB*COS(2*PI()*UnknownFrequencyB*time+UnknownPhaseB) -> 0.8841029494
J116: =J115+1/samplesPerNanosecond -> 37 | L116: =KnownNoiseA*RANDBETWEEN(0,100)/100 + KnownAmplitudeA*COS(2*PI()*KnownFrequencyA*time+KnownPhaseA) -> -0.9672373873 | M116: =UnknownNoiseA*RANDBETWEEN(0,100)/100 + UnknownAmplitudeA*COS(2*PI()*UnknownFrequencyA*time+UnknownPhaseA) -> -0.3206141995 | O116: =KnownNoiseB*RANDBETWEEN(0,100)/100 + KnownAmplitudeB*COS(2*PI()*KnownFrequencyB*time+KnownPhaseB) -> -0.8775285066 | P116: =UnknownNoiseB*RANDBETWEEN(0,100)/100 + UnknownAmplitudeB*COS(2*PI()*UnknownFrequencyB*time+UnknownPhaseB) -> 0.990860048
J117: =J116+1/samplesPerNanosecond -> 37.33333333 | L117: =KnownNoiseA*RANDBETWEEN(0,100)/100 + KnownAmplitudeA*COS(2*PI()*KnownFrequencyA*time+KnownPhaseA) -> -0.9409959919 | M117: =UnknownNoiseA*RANDBETWEEN(0,100)/100 + UnknownAmplitudeA*COS(2*PI()*UnknownFrequencyA*time+UnknownPhaseA) -> 0.1508542698 | O117: =KnownNoiseB*RANDBETWEEN(0,100)/100 + KnownAmplitudeB*COS(2*PI()*KnownFrequencyB*time+KnownPhaseB) -> -0.9224771643 | P117: =UnknownNoiseB*RANDBETWEEN(0,100)/100 + UnknownAmplitudeB*COS(2*PI()*UnknownFrequencyB*time+UnknownPhaseB) -> 1.058083165
J118: =J117+1/samplesPerNanosecond -> 37.66666667 | L118: =KnownNoiseA*RANDBETWEEN(0,100)/100 + KnownAmplitudeA*COS(2*PI()*KnownFrequencyA*time+KnownPhaseA) -> -0.9870002638 | M118: =UnknownNoiseA*RANDBETWEEN(0,100)/100 + UnknownAmplitudeA*COS(2*PI()*UnknownFrequencyA*time+UnknownPhaseA) -> 0.5484224038 | O118: =KnownNoiseB*RANDBETWEEN(0,100)/100 + KnownAmplitudeB*COS(2*PI()*KnownFrequencyB*time+KnownPhaseB) -> -0.9027566078 | P118: =UnknownNoiseB*RANDBETWEEN(0,100)/100 + UnknownAmplitudeB*COS(2*PI()*UnknownFrequencyB*time+UnknownPhaseB) -> 0.7837333592
J119: =J118+1/samplesPerNanosecond -> 38 | L119: =KnownNoiseA*RANDBETWEEN(0,100)/100 + KnownAmplitudeA*COS(2*PI()*KnownFrequencyA*time+KnownPhaseA) -> -0.9732519497 | M119: =UnknownNoiseA*RANDBETWEEN(0,100)/100 + UnknownAmplitudeA*COS(2*PI()*UnknownFrequencyA*time+UnknownPhaseA) -> 0.9418727422 | O119: =KnownNoiseB*RANDBETWEEN(0,100)/100 + KnownAmplitudeB*COS(2*PI()*KnownFrequencyB*time+KnownPhaseB) -> -0.8943909074 | P119: =UnknownNoiseB*RANDBETWEEN(0,100)/100 + UnknownAmplitudeB*COS(2*PI()*UnknownFrequencyB*time+UnknownPhaseB) -> 0.439118907
J120: =J119+1/samplesPerNanosecond -> 38.33333333 | L120: =KnownNoiseA*RANDBETWEEN(0,100)/100 + KnownAmplitudeA*COS(2*PI()*KnownFrequencyA*time+KnownPhaseA) -> -0.9237558712 | M120: =UnknownNoiseA*RANDBETWEEN(0,100)/100 + UnknownAmplitudeA*COS(2*PI()*UnknownFrequencyA*time+UnknownPhaseA) -> 1.094538801 | O120: =KnownNoiseB*RANDBETWEEN(0,100)/100 + KnownAmplitudeB*COS(2*PI()*KnownFrequencyB*time+KnownPhaseB) -> -0.80540702 | P120: =UnknownNoiseB*RANDBETWEEN(0,100)/100 + UnknownAmplitudeB*COS(2*PI()*UnknownFrequencyB*time+UnknownPhaseB) -> 0.04978570168
J121: =J120+1/samplesPerNanosecond -> 38.66666667 | L121: =KnownNoiseA*RANDBETWEEN(0,100)/100 + KnownAmplitudeA*COS(2*PI()*KnownFrequencyA*time+KnownPhaseA) -> -0.9235199159 | M121: =UnknownNoiseA*RANDBETWEEN(0,100)/100 + UnknownAmplitudeA*COS(2*PI()*UnknownFrequencyA*time+UnknownPhaseA) -> 1.030114098 | O121: =KnownNoiseB*RANDBETWEEN(0,100)/100 + KnownAmplitudeB*COS(2*PI()*KnownFrequencyB*time+KnownPhaseB) -> -0.813834741 | P121: =UnknownNoiseB*RANDBETWEEN(0,100)/100 + UnknownAmplitudeB*COS(2*PI()*UnknownFrequencyB*time+UnknownPhaseB) -> -0.4388770311
J122: =J121+1/samplesPerNanosecond -> 39 | L122: =KnownNoiseA*RANDBETWEEN(0,100)/100 + KnownAmplitudeA*COS(2*PI()*KnownFrequencyA*time+KnownPhaseA) -> -0.8875550238 | M122: =UnknownNoiseA*RANDBETWEEN(0,100)/100 + UnknownAmplitudeA*COS(2*PI()*UnknownFrequencyA*time+UnknownPhaseA) -> 0.7205483132 | O122: =KnownNoiseB*RANDBETWEEN(0,100)/100 + KnownAmplitudeB*COS(2*PI()*KnownFrequencyB*time+KnownPhaseB) -> -0.8137066525 | P122: =UnknownNoiseB*RANDBETWEEN(0,100)/100 + UnknownAmplitudeB*COS(2*PI()*UnknownFrequencyB*time+UnknownPhaseB) -> -0.7554197143
J123: =J122+1/samplesPerNanosecond -> 39.33333333 | L123: =KnownNoiseA*RANDBETWEEN(0,100)/100 + KnownAmplitudeA*COS(2*PI()*KnownFrequencyA*time+KnownPhaseA) -> -0.921875168 | M123: =UnknownNoiseA*RANDBETWEEN(0,100)/100 + UnknownAmplitudeA*COS(2*PI()*UnknownFrequencyA*time+UnknownPhaseA) -> 0.3638443235 | O123: =KnownNoiseB*RANDBETWEEN(0,100)/100 + KnownAmplitudeB*COS(2*PI()*KnownFrequencyB*time+KnownPhaseB) -> -0.7950580662 | P123: =UnknownNoiseB*RANDBETWEEN(0,100)/100 + UnknownAmplitudeB*COS(2*PI()*UnknownFrequencyB*time+UnknownPhaseB) -> -0.9199263578
J124: =J123+1/samplesPerNanosecond -> 39.66666667 | L124: =KnownNoiseA*RANDBETWEEN(0,100)/100 + KnownAmplitudeA*COS(2*PI()*KnownFrequencyA*time+KnownPhaseA) -> -0.9024973303 | M124: =UnknownNoiseA*RANDBETWEEN(0,100)/100 + UnknownAmplitudeA*COS(2*PI()*UnknownFrequencyA*time+UnknownPhaseA) -> -0.1038006578 | O124: =KnownNoiseB*RANDBETWEEN(0,100)/100 + KnownAmplitudeB*COS(2*PI()*KnownFrequencyB*time+KnownPhaseB) -> -0.8149269606 | P124: =UnknownNoiseB*RANDBETWEEN(0,100)/100 + UnknownAmplitudeB*COS(2*PI()*UnknownFrequencyB*time+UnknownPhaseB) -> -0.8848797314
J125: =J124+1/samplesPerNanosecond -> 40 | L125: =KnownNoiseA*RANDBETWEEN(0,100)/100 + KnownAmplitudeA*COS(2*PI()*KnownFrequencyA*time+KnownPhaseA) -> -0.8694414712 | M125: =UnknownNoiseA*RANDBETWEEN(0,100)/100 + UnknownAmplitudeA*COS(2*PI()*UnknownFrequencyA*time+UnknownPhaseA) -> -0.5435263525 | O125: =KnownNoiseB*RANDBETWEEN(0,100)/100 + KnownAmplitudeB*COS(2*PI()*KnownFrequencyB*time+KnownPhaseB) -> -0.7123539161 | P125: =UnknownNoiseB*RANDBETWEEN(0,100)/100 + UnknownAmplitudeB*COS(2*PI()*UnknownFrequencyB*time+UnknownPhaseB) -> -0.7265082478
J126: =J125+1/samplesPerNanosecond -> 40.33333333 | L126: =KnownNoiseA*RANDBETWEEN(0,100)/100 + KnownAmplitudeA*COS(2*PI()*KnownFrequencyA*time+KnownPhaseA) -> -0.9287304952 | M126: =UnknownNoiseA*RANDBETWEEN(0,100)/100 + UnknownAmplitudeA*COS(2*PI()*UnknownFrequencyA*time+UnknownPhaseA) -> -0.7898883588 | O126: =KnownNoiseB*RANDBETWEEN(0,100)/100 + KnownAmplitudeB*COS(2*PI()*KnownFrequencyB*time+KnownPhaseB) -> -0.7653820416 | P126: =UnknownNoiseB*RANDBETWEEN(0,100)/100 + UnknownAmplitudeB*COS(2*PI()*UnknownFrequencyB*time+UnknownPhaseB) -> -0.3601364399
J127: =J126+1/samplesPerNanosecond -> 40.66666667 | L127: =KnownNoiseA*RANDBETWEEN(0,100)/100 + KnownAmplitudeA*COS(2*PI()*KnownFrequencyA*time+KnownPhaseA) -> -0.8763902104 | M127: =UnknownNoiseA*RANDBETWEEN(0,100)/100 + UnknownAmplitudeA*COS(2*PI()*UnknownFrequencyA*time+UnknownPhaseA) -> -0.9498474797 | O127: =KnownNoiseB*RANDBETWEEN(0,100)/100 + KnownAmplitudeB*COS(2*PI()*KnownFrequencyB*time+KnownPhaseB) -> -0.7130569011 | P127: =UnknownNoiseB*RANDBETWEEN(0,100)/100 + UnknownAmplitudeB*COS(2*PI()*UnknownFrequencyB*time+UnknownPhaseB) -> 0.1283302906
J128: =J127+1/samplesPerNanosecond -> 41 | L128: =KnownNoiseA*RANDBETWEEN(0,100)/100 + KnownAmplitudeA*COS(2*PI()*KnownFrequencyA*time+KnownPhaseA) -> -0.8414492831 | M128: =UnknownNoiseA*RANDBETWEEN(0,100)/100 + UnknownAmplitudeA*COS(2*PI()*UnknownFrequencyA*time+UnknownPhaseA) -> -0.9182513578 | O128: =KnownNoiseB*RANDBETWEEN(0,100)/100 + KnownAmplitudeB*COS(2*PI()*KnownFrequencyB*time+KnownPhaseB) -> -0.695426432 | P128: =UnknownNoiseB*RANDBETWEEN(0,100)/100 + UnknownAmplitudeB*COS(2*PI()*UnknownFrequencyB*time+UnknownPhaseB) -> 0.5520734738
J129: =J128+1/samplesPerNanosecond -> 41.33333333 | L129: =KnownNoiseA*RANDBETWEEN(0,100)/100 + KnownAmplitudeA*COS(2*PI()*KnownFrequencyA*time+KnownPhaseA) -> -0.8149391877 | M129: =UnknownNoiseA*RANDBETWEEN(0,100)/100 + UnknownAmplitudeA*COS(2*PI()*UnknownFrequencyA*time+UnknownPhaseA) -> -0.6332972437 | O129: =KnownNoiseB*RANDBETWEEN(0,100)/100 + KnownAmplitudeB*COS(2*PI()*KnownFrequencyB*time+KnownPhaseB) -> -0.6175408617 | P129: =UnknownNoiseB*RANDBETWEEN(0,100)/100 + UnknownAmplitudeB*COS(2*PI()*UnknownFrequencyB*time+UnknownPhaseB) -> 0.8592309168
J130: =J129+1/samplesPerNanosecond -> 41.66666667 | L130: =KnownNoiseA*RANDBETWEEN(0,100)/100 + KnownAmplitudeA*COS(2*PI()*KnownFrequencyA*time+KnownPhaseA) -> -0.7548941518 | M130: =UnknownNoiseA*RANDBETWEEN(0,100)/100 + UnknownAmplitudeA*COS(2*PI()*UnknownFrequencyA*time+UnknownPhaseA) -> -0.2458768483 | O130: =KnownNoiseB*RANDBETWEEN(0,100)/100 + KnownAmplitudeB*COS(2*PI()*KnownFrequencyB*time+KnownPhaseB) -> -0.6214526199 | P130: =UnknownNoiseB*RANDBETWEEN(0,100)/100 + UnknownAmplitudeB*COS(2*PI()*UnknownFrequencyB*time+UnknownPhaseB) -> 1.078372462
J131: =J130+1/samplesPerNanosecond -> 42 | L131: =KnownNoiseA*RANDBETWEEN(0,100)/100 + KnownAmplitudeA*COS(2*PI()*KnownFrequencyA*time+KnownPhaseA) -> -0.7353510953 | M131: =UnknownNoiseA*RANDBETWEEN(0,100)/100 + UnknownAmplitudeA*COS(2*PI()*UnknownFrequencyA*time+UnknownPhaseA) -> 0.1966625344 | O131: =KnownNoiseB*RANDBETWEEN(0,100)/100 + KnownAmplitudeB*COS(2*PI()*KnownFrequencyB*time+KnownPhaseB) -> -0.5402162456 | P131: =UnknownNoiseB*RANDBETWEEN(0,100)/100 + UnknownAmplitudeB*COS(2*PI()*UnknownFrequencyB*time+UnknownPhaseB) -> 0.9600662274
J132: =J131+1/samplesPerNanosecond -> 42.33333333 | L132: =KnownNoiseA*RANDBETWEEN(0,100)/100 + KnownAmplitudeA*COS(2*PI()*KnownFrequencyA*time+KnownPhaseA) -> -0.7513495666 | M132: =UnknownNoiseA*RANDBETWEEN(0,100)/100 + UnknownAmplitudeA*COS(2*PI()*UnknownFrequencyA*time+UnknownPhaseA) -> 0.6172806821 | O132: =KnownNoiseB*RANDBETWEEN(0,100)/100 + KnownAmplitudeB*COS(2*PI()*KnownFrequencyB*time+KnownPhaseB) -> -0.5038882928 | P132: =UnknownNoiseB*RANDBETWEEN(0,100)/100 + UnknownAmplitudeB*COS(2*PI()*UnknownFrequencyB*time+UnknownPhaseB) -> 0.8018059412
J133: =J132+1/samplesPerNanosecond -> 42.66666667 | L133: =KnownNoiseA*RANDBETWEEN(0,100)/100 + KnownAmplitudeA*COS(2*PI()*KnownFrequencyA*time+KnownPhaseA) -> -0.7069316724 | M133: =UnknownNoiseA*RANDBETWEEN(0,100)/100 + UnknownAmplitudeA*COS(2*PI()*UnknownFrequencyA*time+UnknownPhaseA) -> 0.9473595882 | O133: =KnownNoiseB*RANDBETWEEN(0,100)/100 + KnownAmplitudeB*COS(2*PI()*KnownFrequencyB*time+KnownPhaseB) -> -0.5075272298 | P133: =UnknownNoiseB*RANDBETWEEN(0,100)/100 + UnknownAmplitudeB*COS(2*PI()*UnknownFrequencyB*time+UnknownPhaseB) -> 0.3729056594
J134: =J133+1/samplesPerNanosecond -> 43 | L134: =KnownNoiseA*RANDBETWEEN(0,100)/100 + KnownAmplitudeA*COS(2*PI()*KnownFrequencyA*time+KnownPhaseA) -> -0.7401420042 | M134: =UnknownNoiseA*RANDBETWEEN(0,100)/100 + UnknownAmplitudeA*COS(2*PI()*UnknownFrequencyA*time+UnknownPhaseA) -> 1.070526529 | O134: =KnownNoiseB*RANDBETWEEN(0,100)/100 + KnownAmplitudeB*COS(2*PI()*KnownFrequencyB*time+KnownPhaseB) -> -0.4911933375 | P134: =UnknownNoiseB*RANDBETWEEN(0,100)/100 + UnknownAmplitudeB*COS(2*PI()*UnknownFrequencyB*time+UnknownPhaseB) -> -0.05741575597
J135: =J134+1/samplesPerNanosecond -> 43.33333333 | L135: =KnownNoiseA*RANDBETWEEN(0,100)/100 + KnownAmplitudeA*COS(2*PI()*KnownFrequencyA*time+KnownPhaseA) -> -0.6520275605 | M135: =UnknownNoiseA*RANDBETWEEN(0,100)/100 + UnknownAmplitudeA*COS(2*PI()*UnknownFrequencyA*time+UnknownPhaseA) -> 0.9358004191 | O135: =KnownNoiseB*RANDBETWEEN(0,100)/100 + KnownAmplitudeB*COS(2*PI()*KnownFrequencyB*time+KnownPhaseB) -> -0.4009486038 | P135: =UnknownNoiseB*RANDBETWEEN(0,100)/100 + UnknownAmplitudeB*COS(2*PI()*UnknownFrequencyB*time+UnknownPhaseB) -> -0.4449666919
J136: =J135+1/samplesPerNanosecond -> 43.66666667 | L136: =KnownNoiseA*RANDBETWEEN(0,100)/100 + KnownAmplitudeA*COS(2*PI()*KnownFrequencyA*time+KnownPhaseA) -> -0.6536376632 | M136: =UnknownNoiseA*RANDBETWEEN(0,100)/100 + UnknownAmplitudeA*COS(2*PI()*UnknownFrequencyA*time+UnknownPhaseA) -> 0.7276177471 | O136: =KnownNoiseB*RANDBETWEEN(0,100)/100 + KnownAmplitudeB*COS(2*PI()*KnownFrequencyB*time+KnownPhaseB) -> -0.3728566139 | P136: =UnknownNoiseB*RANDBETWEEN(0,100)/100 + UnknownAmplitudeB*COS(2*PI()*UnknownFrequencyB*time+UnknownPhaseB) -> -0.7335272021
J137: =J136+1/samplesPerNanosecond -> 44 | L137: =KnownNoiseA*RANDBETWEEN(0,100)/100 + KnownAmplitudeA*COS(2*PI()*KnownFrequencyA*time+KnownPhaseA) -> -0.5950238726 | M137: =UnknownNoiseA*RANDBETWEEN(0,100)/100 + UnknownAmplitudeA*COS(2*PI()*UnknownFrequencyA*time+UnknownPhaseA) -> 0.2887269123 | O137: =KnownNoiseB*RANDBETWEEN(0,100)/100 + KnownAmplitudeB*COS(2*PI()*KnownFrequencyB*time+KnownPhaseB) -> -0.3169824402 | P137: =UnknownNoiseB*RANDBETWEEN(0,100)/100 + UnknownAmplitudeB*COS(2*PI()*UnknownFrequencyB*time+UnknownPhaseB) -> -0.8991955518
J138: =J137+1/samplesPerNanosecond -> 44.33333333 | L138: =KnownNoiseA*RANDBETWEEN(0,100)/100 + KnownAmplitudeA*COS(2*PI()*KnownFrequencyA*time+KnownPhaseA) -> -0.6042398955 | M138: =UnknownNoiseA*RANDBETWEEN(0,100)/100 + UnknownAmplitudeA*COS(2*PI()*UnknownFrequencyA*time+UnknownPhaseA) -> -0.1174241968 | O138: =KnownNoiseB*RANDBETWEEN(0,100)/100 + KnownAmplitudeB*COS(2*PI()*KnownFrequencyB*time+KnownPhaseB) -> -0.3643925267 | P138: =UnknownNoiseB*RANDBETWEEN(0,100)/100 + UnknownAmplitudeB*COS(2*PI()*UnknownFrequencyB*time+UnknownPhaseB) -> -0.8906469564
J139: =J138+1/samplesPerNanosecond -> 44.66666667 | L139: =KnownNoiseA*RANDBETWEEN(0,100)/100 + KnownAmplitudeA*COS(2*PI()*KnownFrequencyA*time+KnownPhaseA) -> -0.5743414915 | M139: =UnknownNoiseA*RANDBETWEEN(0,100)/100 + UnknownAmplitudeA*COS(2*PI()*UnknownFrequencyA*time+UnknownPhaseA) -> -0.5156722836 | O139: =KnownNoiseB*RANDBETWEEN(0,100)/100 + KnownAmplitudeB*COS(2*PI()*KnownFrequencyB*time+KnownPhaseB) -> -0.318154573 | P139: =UnknownNoiseB*RANDBETWEEN(0,100)/100 + UnknownAmplitudeB*COS(2*PI()*UnknownFrequencyB*time+UnknownPhaseB) -> -0.707636989
J140: =J139+1/samplesPerNanosecond -> 45 | L140: =KnownNoiseA*RANDBETWEEN(0,100)/100 + KnownAmplitudeA*COS(2*PI()*KnownFrequencyA*time+KnownPhaseA) -> -0.5583863761 | M140: =UnknownNoiseA*RANDBETWEEN(0,100)/100 + UnknownAmplitudeA*COS(2*PI()*UnknownFrequencyA*time+UnknownPhaseA) -> -0.8132785533 | O140: =KnownNoiseB*RANDBETWEEN(0,100)/100 + KnownAmplitudeB*COS(2*PI()*KnownFrequencyB*time+KnownPhaseB) -> -0.2713374162 | P140: =UnknownNoiseB*RANDBETWEEN(0,100)/100 + UnknownAmplitudeB*COS(2*PI()*UnknownFrequencyB*time+UnknownPhaseB) -> -0.2554412386
J141: =J140+1/samplesPerNanosecond -> 45.33333333 | L141: =KnownNoiseA*RANDBETWEEN(0,100)/100 + KnownAmplitudeA*COS(2*PI()*KnownFrequencyA*time+KnownPhaseA) -> -0.4604341176 | M141: =UnknownNoiseA*RANDBETWEEN(0,100)/100 + UnknownAmplitudeA*COS(2*PI()*UnknownFrequencyA*time+UnknownPhaseA) -> -0.9465748867 | O141: =KnownNoiseB*RANDBETWEEN(0,100)/100 + KnownAmplitudeB*COS(2*PI()*KnownFrequencyB*time+KnownPhaseB) -> -0.1790109087 | P141: =UnknownNoiseB*RANDBETWEEN(0,100)/100 + UnknownAmplitudeB*COS(2*PI()*UnknownFrequencyB*time+UnknownPhaseB) -> 0.1794548504
J142: =J141+1/samplesPerNanosecond -> 45.66666667 | L142: =KnownNoiseA*RANDBETWEEN(0,100)/100 + KnownAmplitudeA*COS(2*PI()*KnownFrequencyA*time+KnownPhaseA) -> -0.4365460347 | M142: =UnknownNoiseA*RANDBETWEEN(0,100)/100 + UnknownAmplitudeA*COS(2*PI()*UnknownFrequencyA*time+UnknownPhaseA) -> -0.8287672516 | O142: =KnownNoiseB*RANDBETWEEN(0,100)/100 + KnownAmplitudeB*COS(2*PI()*KnownFrequencyB*time+KnownPhaseB) -> -0.2082457973 | P142: =UnknownNoiseB*RANDBETWEEN(0,100)/100 + UnknownAmplitudeB*COS(2*PI()*UnknownFrequencyB*time+UnknownPhaseB) -> 0.5485428571
J143: =J142+1/samplesPerNanosecond -> 46 | L143: =KnownNoiseA*RANDBETWEEN(0,100)/100 + KnownAmplitudeA*COS(2*PI()*KnownFrequencyA*time+KnownPhaseA) -> -0.3897850869 | M143: =UnknownNoiseA*RANDBETWEEN(0,100)/100 + UnknownAmplitudeA*COS(2*PI()*UnknownFrequencyA*time+UnknownPhaseA) -> -0.6395216218 | O143: =KnownNoiseB*RANDBETWEEN(0,100)/100 + KnownAmplitudeB*COS(2*PI()*KnownFrequencyB*time+KnownPhaseB) -> -0.1341135977 | P143: =UnknownNoiseB*RANDBETWEEN(0,100)/100 + UnknownAmplitudeB*COS(2*PI()*UnknownFrequencyB*time+UnknownPhaseB) -> 0.8492995402
J144: =J143+1/samplesPerNanosecond -> 46.33333333 | L144: =KnownNoiseA*RANDBETWEEN(0,100)/100 + KnownAmplitudeA*COS(2*PI()*KnownFrequencyA*time+KnownPhaseA) -> -0.3962157653 | M144: =UnknownNoiseA*RANDBETWEEN(0,100)/100 + UnknownAmplitudeA*COS(2*PI()*UnknownFrequencyA*time+UnknownPhaseA) -> -0.1454097691 | O144: =KnownNoiseB*RANDBETWEEN(0,100)/100 + KnownAmplitudeB*COS(2*PI()*KnownFrequencyB*time+KnownPhaseB) -> -0.1186864695 | P144: =UnknownNoiseB*RANDBETWEEN(0,100)/100 + UnknownAmplitudeB*COS(2*PI()*UnknownFrequencyB*time+UnknownPhaseB) -> 0.993393213
J145: =J144+1/samplesPerNanosecond -> 46.66666667 | L145: =KnownNoiseA*RANDBETWEEN(0,100)/100 + KnownAmplitudeA*COS(2*PI()*KnownFrequencyA*time+KnownPhaseA) -> -0.3779039797 | M145: =UnknownNoiseA*RANDBETWEEN(0,100)/100 + UnknownAmplitudeA*COS(2*PI()*UnknownFrequencyA*time+UnknownPhaseA) -> 0.2560700041 | O145: =KnownNoiseB*RANDBETWEEN(0,100)/100 + KnownAmplitudeB*COS(2*PI()*KnownFrequencyB*time+KnownPhaseB) -> -0.03803709039 | P145: =UnknownNoiseB*RANDBETWEEN(0,100)/100 + UnknownAmplitudeB*COS(2*PI()*UnknownFrequencyB*time+UnknownPhaseB) -> 0.983626605
J146: =J145+1/samplesPerNanosecond -> 47 | L146: =KnownNoiseA*RANDBETWEEN(0,100)/100 + KnownAmplitudeA*COS(2*PI()*KnownFrequencyA*time+KnownPhaseA) -> -0.3099169414 | M146: =UnknownNoiseA*RANDBETWEEN(0,100)/100 + UnknownAmplitudeA*COS(2*PI()*UnknownFrequencyA*time+UnknownPhaseA) -> 0.6706882775 | O146: =KnownNoiseB*RANDBETWEEN(0,100)/100 + KnownAmplitudeB*COS(2*PI()*KnownFrequencyB*time+KnownPhaseB) -> 0.01876147289 | P146: =UnknownNoiseB*RANDBETWEEN(0,100)/100 + UnknownAmplitudeB*COS(2*PI()*UnknownFrequencyB*time+UnknownPhaseB) -> 0.7900122353
J147: =J146+1/samplesPerNanosecond -> 47.33333333 | L147: =KnownNoiseA*RANDBETWEEN(0,100)/100 + KnownAmplitudeA*COS(2*PI()*KnownFrequencyA*time+KnownPhaseA) -> -0.2603230476 | M147: =UnknownNoiseA*RANDBETWEEN(0,100)/100 + UnknownAmplitudeA*COS(2*PI()*UnknownFrequencyA*time+UnknownPhaseA) -> 0.978637726 | O147: =KnownNoiseB*RANDBETWEEN(0,100)/100 + KnownAmplitudeB*COS(2*PI()*KnownFrequencyB*time+KnownPhaseB) -> 0.04663589102 | P147: =UnknownNoiseB*RANDBETWEEN(0,100)/100 + UnknownAmplitudeB*COS(2*PI()*UnknownFrequencyB*time+UnknownPhaseB) -> 0.330757998
J148: =J147+1/samplesPerNanosecond -> 47.66666667 | L148: =KnownNoiseA*RANDBETWEEN(0,100)/100 + KnownAmplitudeA*COS(2*PI()*KnownFrequencyA*time+KnownPhaseA) -> -0.231191759 | M148: =UnknownNoiseA*RANDBETWEEN(0,100)/100 + UnknownAmplitudeA*COS(2*PI()*UnknownFrequencyA*time+UnknownPhaseA) -> 1.067991892 | O148: =KnownNoiseB*RANDBETWEEN(0,100)/100 + KnownAmplitudeB*COS(2*PI()*KnownFrequencyB*time+KnownPhaseB) -> 0.1375127022 | P148: =UnknownNoiseB*RANDBETWEEN(0,100)/100 + UnknownAmplitudeB*COS(2*PI()*UnknownFrequencyB*time+UnknownPhaseB) -> -0.03643175859
J149: =J148+1/samplesPerNanosecond -> 48 | L149: =KnownNoiseA*RANDBETWEEN(0,100)/100 + KnownAmplitudeA*COS(2*PI()*KnownFrequencyA*time+KnownPhaseA) -> -0.2195934793 | M149: =UnknownNoiseA*RANDBETWEEN(0,100)/100 + UnknownAmplitudeA*COS(2*PI()*UnknownFrequencyA*time+UnknownPhaseA) -> 0.9681581923 | O149: =KnownNoiseB*RANDBETWEEN(0,100)/100 + KnownAmplitudeB*COS(2*PI()*KnownFrequencyB*time+KnownPhaseB) -> 0.1153184407 | P149: =UnknownNoiseB*RANDBETWEEN(0,100)/100 + UnknownAmplitudeB*COS(2*PI()*UnknownFrequencyB*time+UnknownPhaseB) -> -0.4667883414
J150: =J149+1/samplesPerNanosecond -> 48.33333333 | L150: =KnownNoiseA*RANDBETWEEN(0,100)/100 + KnownAmplitudeA*COS(2*PI()*KnownFrequencyA*time+KnownPhaseA) -> -0.08859943234 | M150: =UnknownNoiseA*RANDBETWEEN(0,100)/100 + UnknownAmplitudeA*COS(2*PI()*UnknownFrequencyA*time+UnknownPhaseA) -> 0.6300209293 | O150: =KnownNoiseB*RANDBETWEEN(0,100)/100 + KnownAmplitudeB*COS(2*PI()*KnownFrequencyB*time+KnownPhaseB) -> 0.1559797643 | P150: =UnknownNoiseB*RANDBETWEEN(0,100)/100 + UnknownAmplitudeB*COS(2*PI()*UnknownFrequencyB*time+UnknownPhaseB) -> -0.8125392323
J151: =J150+1/samplesPerNanosecond -> 48.66666667 | L151: =KnownNoiseA*RANDBETWEEN(0,100)/100 + KnownAmplitudeA*COS(2*PI()*KnownFrequencyA*time+KnownPhaseA) -> -0.1202815352 | M151: =UnknownNoiseA*RANDBETWEEN(0,100)/100 + UnknownAmplitudeA*COS(2*PI()*UnknownFrequencyA*time+UnknownPhaseA) -> 0.258940778 | O151: =KnownNoiseB*RANDBETWEEN(0,100)/100 + KnownAmplitudeB*COS(2*PI()*KnownFrequencyB*time+KnownPhaseB) -> 0.2214235854 | P151: =UnknownNoiseB*RANDBETWEEN(0,100)/100 + UnknownAmplitudeB*COS(2*PI()*UnknownFrequencyB*time+UnknownPhaseB) -> -0.9319634259
J152: =J151+1/samplesPerNanosecond -> 49 | L152: =KnownNoiseA*RANDBETWEEN(0,100)/100 + KnownAmplitudeA*COS(2*PI()*KnownFrequencyA*time+KnownPhaseA) -> -0.09671227334 | M152: =UnknownNoiseA*RANDBETWEEN(0,100)/100 + UnknownAmplitudeA*COS(2*PI()*UnknownFrequencyA*time+UnknownPhaseA) -> -0.1645843899 | O152: =KnownNoiseB*RANDBETWEEN(0,100)/100 + KnownAmplitudeB*COS(2*PI()*KnownFrequencyB*time+KnownPhaseB) -> 0.2845771975 | P152: =UnknownNoiseB*RANDBETWEEN(0,100)/100 + UnknownAmplitudeB*COS(2*PI()*UnknownFrequencyB*time+UnknownPhaseB) -> -0.8950102388
J153: =J152+1/samplesPerNanosecond -> 49.33333333 | L153: =KnownNoiseA*RANDBETWEEN(0,100)/100 + KnownAmplitudeA*COS(2*PI()*KnownFrequencyA*time+KnownPhaseA) -> -0.03496457382 | M153: =UnknownNoiseA*RANDBETWEEN(0,100)/100 + UnknownAmplitudeA*COS(2*PI()*UnknownFrequencyA*time+UnknownPhaseA) -> -0.612316021 | O153: =KnownNoiseB*RANDBETWEEN(0,100)/100 + KnownAmplitudeB*COS(2*PI()*KnownFrequencyB*time+KnownPhaseB) -> 0.2683684027 | P153: =UnknownNoiseB*RANDBETWEEN(0,100)/100 + UnknownAmplitudeB*COS(2*PI()*UnknownFrequencyB*time+UnknownPhaseB) -> -0.6309428125
J154: =J153+1/samplesPerNanosecond -> 49.66666667 | L154: =KnownNoiseA*RANDBETWEEN(0,100)/100 + KnownAmplitudeA*COS(2*PI()*KnownFrequencyA*time+KnownPhaseA) -> 0.07488832418 | M154: =UnknownNoiseA*RANDBETWEEN(0,100)/100 + UnknownAmplitudeA*COS(2*PI()*UnknownFrequencyA*time+UnknownPhaseA) -> -0.8294299314 | O154: =KnownNoiseB*RANDBETWEEN(0,100)/100 + KnownAmplitudeB*COS(2*PI()*KnownFrequencyB*time+KnownPhaseB) -> 0.35072564 | P154: =UnknownNoiseB*RANDBETWEEN(0,100)/100 + UnknownAmplitudeB*COS(2*PI()*UnknownFrequencyB*time+UnknownPhaseB) -> -0.2148708966
J155: =J154+1/samplesPerNanosecond -> 50 | L155: =KnownNoiseA*RANDBETWEEN(0,100)/100 + KnownAmplitudeA*COS(2*PI()*KnownFrequencyA*time+KnownPhaseA) -> 0.04877299598 | M155: =UnknownNoiseA*RANDBETWEEN(0,100)/100 + UnknownAmplitudeA*COS(2*PI()*UnknownFrequencyA*time+UnknownPhaseA) -> -0.9007772808 | O155: =KnownNoiseB*RANDBETWEEN(0,100)/100 + KnownAmplitudeB*COS(2*PI()*KnownFrequencyB*time+KnownPhaseB) -> 0.4025781084 | P155: =UnknownNoiseB*RANDBETWEEN(0,100)/100 + UnknownAmplitudeB*COS(2*PI()*UnknownFrequencyB*time+UnknownPhaseB) -> 0.1903307047
J156: =J155+1/samplesPerNanosecond -> 50.33333333 | L156: =KnownNoiseA*RANDBETWEEN(0,100)/100 + KnownAmplitudeA*COS(2*PI()*KnownFrequencyA*time+KnownPhaseA) -> 0.06961596186 | M156: =UnknownNoiseA*RANDBETWEEN(0,100)/100 + UnknownAmplitudeA*COS(2*PI()*UnknownFrequencyA*time+UnknownPhaseA) -> -0.830979942 | O156: =KnownNoiseB*RANDBETWEEN(0,100)/100 + KnownAmplitudeB*COS(2*PI()*KnownFrequencyB*time+KnownPhaseB) -> 0.3678558936 | P156: =UnknownNoiseB*RANDBETWEEN(0,100)/100 + UnknownAmplitudeB*COS(2*PI()*UnknownFrequencyB*time+UnknownPhaseB) -> 0.597689726
J157: =J156+1/samplesPerNanosecond -> 50.66666667 | L157: =KnownNoiseA*RANDBETWEEN(0,100)/100 + KnownAmplitudeA*COS(2*PI()*KnownFrequencyA*time+KnownPhaseA) -> 0.1323438153 | M157: =UnknownNoiseA*RANDBETWEEN(0,100)/100 + UnknownAmplitudeA*COS(2*PI()*UnknownFrequencyA*time+UnknownPhaseA) -> -0.5321279867 | O157: =KnownNoiseB*RANDBETWEEN(0,100)/100 + KnownAmplitudeB*COS(2*PI()*KnownFrequencyB*time+KnownPhaseB) -> 0.4934900891 | P157: =UnknownNoiseB*RANDBETWEEN(0,100)/100 + UnknownAmplitudeB*COS(2*PI()*UnknownFrequencyB*time+UnknownPhaseB) -> 0.9112379158
J158: =J157+1/samplesPerNanosecond -> 51 | L158: =KnownNoiseA*RANDBETWEEN(0,100)/100 + KnownAmplitudeA*COS(2*PI()*KnownFrequencyA*time+KnownPhaseA) -> 0.2428833509 | M158: =UnknownNoiseA*RANDBETWEEN(0,100)/100 + UnknownAmplitudeA*COS(2*PI()*UnknownFrequencyA*time+UnknownPhaseA) -> -0.168335394 | O158: =KnownNoiseB*RANDBETWEEN(0,100)/100 + KnownAmplitudeB*COS(2*PI()*KnownFrequencyB*time+KnownPhaseB) -> 0.486412917 | P158: =UnknownNoiseB*RANDBETWEEN(0,100)/100 + UnknownAmplitudeB*COS(2*PI()*UnknownFrequencyB*time+UnknownPhaseB) -> 1.052904567
J159: =J158+1/samplesPerNanosecond -> 51.33333333 | L159: =KnownNoiseA*RANDBETWEEN(0,100)/100 + KnownAmplitudeA*COS(2*PI()*KnownFrequencyA*time+KnownPhaseA) -> 0.2821616949 | M159: =UnknownNoiseA*RANDBETWEEN(0,100)/100 + UnknownAmplitudeA*COS(2*PI()*UnknownFrequencyA*time+UnknownPhaseA) -> 0.3149518704 | O159: =KnownNoiseB*RANDBETWEEN(0,100)/100 + KnownAmplitudeB*COS(2*PI()*KnownFrequencyB*time+KnownPhaseB) -> 0.4995578481 | P159: =UnknownNoiseB*RANDBETWEEN(0,100)/100 + UnknownAmplitudeB*COS(2*PI()*UnknownFrequencyB*time+UnknownPhaseB) -> 0.9708033001
J160: =J159+1/samplesPerNanosecond -> 51.66666667 | L160: =KnownNoiseA*RANDBETWEEN(0,100)/100 + KnownAmplitudeA*COS(2*PI()*KnownFrequencyA*time+KnownPhaseA) -> 0.2411064303 | M160: =UnknownNoiseA*RANDBETWEEN(0,100)/100 + UnknownAmplitudeA*COS(2*PI()*UnknownFrequencyA*time+UnknownPhaseA) -> 0.6985431169 | O160: =KnownNoiseB*RANDBETWEEN(0,100)/100 + KnownAmplitudeB*COS(2*PI()*KnownFrequencyB*time+KnownPhaseB) -> 0.6068597173 | P160: =UnknownNoiseB*RANDBETWEEN(0,100)/100 + UnknownAmplitudeB*COS(2*PI()*UnknownFrequencyB*time+UnknownPhaseB) -> 0.7114401334
J161: =J160+1/samplesPerNanosecond -> 52 | L161: =KnownNoiseA*RANDBETWEEN(0,100)/100 + KnownAmplitudeA*COS(2*PI()*KnownFrequencyA*time+KnownPhaseA) -> 0.3676457265 | M161: =UnknownNoiseA*RANDBETWEEN(0,100)/100 + UnknownAmplitudeA*COS(2*PI()*UnknownFrequencyA*time+UnknownPhaseA) -> 0.955648353 | O161: =KnownNoiseB*RANDBETWEEN(0,100)/100 + KnownAmplitudeB*COS(2*PI()*KnownFrequencyB*time+KnownPhaseB) -> 0.6072548389 | P161: =UnknownNoiseB*RANDBETWEEN(0,100)/100 + UnknownAmplitudeB*COS(2*PI()*UnknownFrequencyB*time+UnknownPhaseB) -> 0.3417950219
J162: =J161+1/samplesPerNanosecond -> 52.33333333 | L162: =KnownNoiseA*RANDBETWEEN(0,100)/100 + KnownAmplitudeA*COS(2*PI()*KnownFrequencyA*time+KnownPhaseA) -> 0.4067084641 | M162: =UnknownNoiseA*RANDBETWEEN(0,100)/100 + UnknownAmplitudeA*COS(2*PI()*UnknownFrequencyA*time+UnknownPhaseA) -> 1.080931189 | O162: =KnownNoiseB*RANDBETWEEN(0,100)/100 + KnownAmplitudeB*COS(2*PI()*KnownFrequencyB*time+KnownPhaseB) -> 0.6746811181 | P162: =UnknownNoiseB*RANDBETWEEN(0,100)/100 + UnknownAmplitudeB*COS(2*PI()*UnknownFrequencyB*time+UnknownPhaseB) -> -0.1321359619
J163: =J162+1/samplesPerNanosecond -> 52.66666667 | L163: =KnownNoiseA*RANDBETWEEN(0,100)/100 + KnownAmplitudeA*COS(2*PI()*KnownFrequencyA*time+KnownPhaseA) -> 0.3892243589 | M163: =UnknownNoiseA*RANDBETWEEN(0,100)/100 + UnknownAmplitudeA*COS(2*PI()*UnknownFrequencyA*time+UnknownPhaseA) -> 0.8862395615 | O163: =KnownNoiseB*RANDBETWEEN(0,100)/100 + KnownAmplitudeB*COS(2*PI()*KnownFrequencyB*time+KnownPhaseB) -> 0.662078159 | P163: =UnknownNoiseB*RANDBETWEEN(0,100)/100 + UnknownAmplitudeB*COS(2*PI()*UnknownFrequencyB*time+UnknownPhaseB) -> -0.4942338086
J164: =J163+1/samplesPerNanosecond -> 53 | L164: =KnownNoiseA*RANDBETWEEN(0,100)/100 + KnownAmplitudeA*COS(2*PI()*KnownFrequencyA*time+KnownPhaseA) -> 0.487124087 | M164: =UnknownNoiseA*RANDBETWEEN(0,100)/100 + UnknownAmplitudeA*COS(2*PI()*UnknownFrequencyA*time+UnknownPhaseA) -> 0.6218553588 | O164: =KnownNoiseB*RANDBETWEEN(0,100)/100 + KnownAmplitudeB*COS(2*PI()*KnownFrequencyB*time+KnownPhaseB) -> 0.7453873723 | P164: =UnknownNoiseB*RANDBETWEEN(0,100)/100 + UnknownAmplitudeB*COS(2*PI()*UnknownFrequencyB*time+UnknownPhaseB) -> -0.79838757
J165: =J164+1/samplesPerNanosecond -> 53.33333333 | L165: =KnownNoiseA*RANDBETWEEN(0,100)/100 + KnownAmplitudeA*COS(2*PI()*KnownFrequencyA*time+KnownPhaseA) -> 0.5053394046 | M165: =UnknownNoiseA*RANDBETWEEN(0,100)/100 + UnknownAmplitudeA*COS(2*PI()*UnknownFrequencyA*time+UnknownPhaseA) -> 0.2106091585 | O165: =KnownNoiseB*RANDBETWEEN(0,100)/100 + KnownAmplitudeB*COS(2*PI()*KnownFrequencyB*time+KnownPhaseB) -> 0.7375520764 | P165: =UnknownNoiseB*RANDBETWEEN(0,100)/100 + UnknownAmplitudeB*COS(2*PI()*UnknownFrequencyB*time+UnknownPhaseB) -> -0.9382154099
J166: =J165+1/samplesPerNanosecond -> 53.66666667 | L166: =KnownNoiseA*RANDBETWEEN(0,100)/100 + KnownAmplitudeA*COS(2*PI()*KnownFrequencyA*time+KnownPhaseA) -> 0.5188032695 | M166: =UnknownNoiseA*RANDBETWEEN(0,100)/100 + UnknownAmplitudeA*COS(2*PI()*UnknownFrequencyA*time+UnknownPhaseA) -> -0.2731570547 | O166: =KnownNoiseB*RANDBETWEEN(0,100)/100 + KnownAmplitudeB*COS(2*PI()*KnownFrequencyB*time+KnownPhaseB) -> 0.7365175978 | P166: =UnknownNoiseB*RANDBETWEEN(0,100)/100 + UnknownAmplitudeB*COS(2*PI()*UnknownFrequencyB*time+UnknownPhaseB) -> -0.8470116042
J167: =J166+1/samplesPerNanosecond -> 54 | L167: =KnownNoiseA*RANDBETWEEN(0,100)/100 + KnownAmplitudeA*COS(2*PI()*KnownFrequencyA*time+KnownPhaseA) -> 0.5184499573 | M167: =UnknownNoiseA*RANDBETWEEN(0,100)/100 + UnknownAmplitudeA*COS(2*PI()*UnknownFrequencyA*time+UnknownPhaseA) -> -0.6103574214 | O167: =KnownNoiseB*RANDBETWEEN(0,100)/100 + KnownAmplitudeB*COS(2*PI()*KnownFrequencyB*time+KnownPhaseB) -> 0.763231367 | P167: =UnknownNoiseB*RANDBETWEEN(0,100)/100 + UnknownAmplitudeB*COS(2*PI()*UnknownFrequencyB*time+UnknownPhaseB) -> -0.6305158845
J168: =J167+1/samplesPerNanosecond -> 54.33333333 | L168: =KnownNoiseA*RANDBETWEEN(0,100)/100 + KnownAmplitudeA*COS(2*PI()*KnownFrequencyA*time+KnownPhaseA) -> 0.6232151769 | M168: =UnknownNoiseA*RANDBETWEEN(0,100)/100 + UnknownAmplitudeA*COS(2*PI()*UnknownFrequencyA*time+UnknownPhaseA) -> -0.9022865365 | O168: =KnownNoiseB*RANDBETWEEN(0,100)/100 + KnownAmplitudeB*COS(2*PI()*KnownFrequencyB*time+KnownPhaseB) -> 0.8466430101 | P168: =UnknownNoiseB*RANDBETWEEN(0,100)/100 + UnknownAmplitudeB*COS(2*PI()*UnknownFrequencyB*time+UnknownPhaseB) -> -0.1715455808
J169: =J168+1/samplesPerNanosecond -> 54.66666667 | L169: =KnownNoiseA*RANDBETWEEN(0,100)/100 + KnownAmplitudeA*COS(2*PI()*KnownFrequencyA*time+KnownPhaseA) -> 0.5730361844 | M169: =UnknownNoiseA*RANDBETWEEN(0,100)/100 + UnknownAmplitudeA*COS(2*PI()*UnknownFrequencyA*time+UnknownPhaseA) -> -0.9694541507 | O169: =KnownNoiseB*RANDBETWEEN(0,100)/100 + KnownAmplitudeB*COS(2*PI()*KnownFrequencyB*time+KnownPhaseB) -> 0.7987044379 | P169: =UnknownNoiseB*RANDBETWEEN(0,100)/100 + UnknownAmplitudeB*COS(2*PI()*UnknownFrequencyB*time+UnknownPhaseB) -> 0.2328318627
J170: =J169+1/samplesPerNanosecond -> 55 | L170: =KnownNoiseA*RANDBETWEEN(0,100)/100 + KnownAmplitudeA*COS(2*PI()*KnownFrequencyA*time+KnownPhaseA) -> 0.6418518916 | M170: =UnknownNoiseA*RANDBETWEEN(0,100)/100 + UnknownAmplitudeA*COS(2*PI()*UnknownFrequencyA*time+UnknownPhaseA) -> -0.861944466 | O170: =KnownNoiseB*RANDBETWEEN(0,100)/100 + KnownAmplitudeB*COS(2*PI()*KnownFrequencyB*time+KnownPhaseB) -> 0.8293699296 | P170: =UnknownNoiseB*RANDBETWEEN(0,100)/100 + UnknownAmplitudeB*COS(2*PI()*UnknownFrequencyB*time+UnknownPhaseB) -> 0.6994076133
J171: =J170+1/samplesPerNanosecond -> 55.33333333 | L171: =KnownNoiseA*RANDBETWEEN(0,100)/100 + KnownAmplitudeA*COS(2*PI()*KnownFrequencyA*time+KnownPhaseA) -> 0.7366029743 | M171: =UnknownNoiseA*RANDBETWEEN(0,100)/100 + UnknownAmplitudeA*COS(2*PI()*UnknownFrequencyA*time+UnknownPhaseA) -> -0.5302158502 | O171: =KnownNoiseB*RANDBETWEEN(0,100)/100 + KnownAmplitudeB*COS(2*PI()*KnownFrequencyB*time+KnownPhaseB) -> 0.9205962137 | P171: =UnknownNoiseB*RANDBETWEEN(0,100)/100 + UnknownAmplitudeB*COS(2*PI()*UnknownFrequencyB*time+UnknownPhaseB) -> 0.9309805209
J172: =J171+1/samplesPerNanosecond -> 55.66666667 | L172: =KnownNoiseA*RANDBETWEEN(0,100)/100 + KnownAmplitudeA*COS(2*PI()*KnownFrequencyA*time+KnownPhaseA) -> 0.6912319763 | M172: =UnknownNoiseA*RANDBETWEEN(0,100)/100 + UnknownAmplitudeA*COS(2*PI()*UnknownFrequencyA*time+UnknownPhaseA) -> -0.05677768905 | O172: =KnownNoiseB*RANDBETWEEN(0,100)/100 + KnownAmplitudeB*COS(2*PI()*KnownFrequencyB*time+KnownPhaseB) -> 0.9003425436 | P172: =UnknownNoiseB*RANDBETWEEN(0,100)/100 + UnknownAmplitudeB*COS(2*PI()*UnknownFrequencyB*time+UnknownPhaseB) -> 1.049895127
J173: =J172+1/samplesPerNanosecond -> 56 | L173: =KnownNoiseA*RANDBETWEEN(0,100)/100 + KnownAmplitudeA*COS(2*PI()*KnownFrequencyA*time+KnownPhaseA) -> 0.7366834091 | M173: =UnknownNoiseA*RANDBETWEEN(0,100)/100 + UnknownAmplitudeA*COS(2*PI()*UnknownFrequencyA*time+UnknownPhaseA) -> 0.3501846541 | O173: =KnownNoiseB*RANDBETWEEN(0,100)/100 + KnownAmplitudeB*COS(2*PI()*KnownFrequencyB*time+KnownPhaseB) -> 0.9625707684 | P173: =UnknownNoiseB*RANDBETWEEN(0,100)/100 + UnknownAmplitudeB*COS(2*PI()*UnknownFrequencyB*time+UnknownPhaseB) -> 0.9866413357
J174: =J173+1/samplesPerNanosecond -> 56.33333333 | L174: =KnownNoiseA*RANDBETWEEN(0,100)/100 + KnownAmplitudeA*COS(2*PI()*KnownFrequencyA*time+KnownPhaseA) -> 0.7369038509 | M174: =UnknownNoiseA*RANDBETWEEN(0,100)/100 + UnknownAmplitudeA*COS(2*PI()*UnknownFrequencyA*time+UnknownPhaseA) -> 0.7497470501 | O174: =KnownNoiseB*RANDBETWEEN(0,100)/100 + KnownAmplitudeB*COS(2*PI()*KnownFrequencyB*time+KnownPhaseB) -> 0.9442454013 | P174: =UnknownNoiseB*RANDBETWEEN(0,100)/100 + UnknownAmplitudeB*COS(2*PI()*UnknownFrequencyB*time+UnknownPhaseB) -> 0.6721820195
J175: =J174+1/samplesPerNanosecond -> 56.66666667 | L175: =KnownNoiseA*RANDBETWEEN(0,100)/100 + KnownAmplitudeA*COS(2*PI()*KnownFrequencyA*time+KnownPhaseA) -> 0.7938420389 | M175: =UnknownNoiseA*RANDBETWEEN(0,100)/100 + UnknownAmplitudeA*COS(2*PI()*UnknownFrequencyA*time+UnknownPhaseA) -> 0.9493383945 | O175: =KnownNoiseB*RANDBETWEEN(0,100)/100 + KnownAmplitudeB*COS(2*PI()*KnownFrequencyB*time+KnownPhaseB) -> 0.9463336804 | P175: =UnknownNoiseB*RANDBETWEEN(0,100)/100 + UnknownAmplitudeB*COS(2*PI()*UnknownFrequencyB*time+UnknownPhaseB) -> 0.2331378897
J176: =J175+1/samplesPerNanosecond -> 57 | L176: =KnownNoiseA*RANDBETWEEN(0,100)/100 + KnownAmplitudeA*COS(2*PI()*KnownFrequencyA*time+KnownPhaseA) -> 0.8114489601 | M176: =UnknownNoiseA*RANDBETWEEN(0,100)/100 + UnknownAmplitudeA*COS(2*PI()*UnknownFrequencyA*time+UnknownPhaseA) -> 1.056347099 | O176: =KnownNoiseB*RANDBETWEEN(0,100)/100 + KnownAmplitudeB*COS(2*PI()*KnownFrequencyB*time+KnownPhaseB) -> 0.9478056272 | P176: =UnknownNoiseB*RANDBETWEEN(0,100)/100 + UnknownAmplitudeB*COS(2*PI()*UnknownFrequencyB*time+UnknownPhaseB) -> -0.1854028087
J177: =J176+1/samplesPerNanosecond -> 57.33333333 | L177: =KnownNoiseA*RANDBETWEEN(0,100)/100 + KnownAmplitudeA*COS(2*PI()*KnownFrequencyA*time+KnownPhaseA) -> 0.875677937 | M177: =UnknownNoiseA*RANDBETWEEN(0,100)/100 + UnknownAmplitudeA*COS(2*PI()*UnknownFrequencyA*time+UnknownPhaseA) -> 0.9161024215 | O177: =KnownNoiseB*RANDBETWEEN(0,100)/100 + KnownAmplitudeB*COS(2*PI()*KnownFrequencyB*time+KnownPhaseB) -> 1.034634099 | P177: =UnknownNoiseB*RANDBETWEEN(0,100)/100 + UnknownAmplitudeB*COS(2*PI()*UnknownFrequencyB*time+UnknownPhaseB) -> -0.5411983979
J178: =J177+1/samplesPerNanosecond -> 57.66666667 | L178: =KnownNoiseA*RANDBETWEEN(0,100)/100 + KnownAmplitudeA*COS(2*PI()*KnownFrequencyA*time+KnownPhaseA) -> 0.8994847093 | M178: =UnknownNoiseA*RANDBETWEEN(0,100)/100 + UnknownAmplitudeA*COS(2*PI()*UnknownFrequencyA*time+UnknownPhaseA) -> 0.5772224969 | O178: =KnownNoiseB*RANDBETWEEN(0,100)/100 + KnownAmplitudeB*COS(2*PI()*KnownFrequencyB*time+KnownPhaseB) -> 1.060794835 | P178: =UnknownNoiseB*RANDBETWEEN(0,100)/100 + UnknownAmplitudeB*COS(2*PI()*UnknownFrequencyB*time+UnknownPhaseB) -> -0.8660094464
J179: =J178+1/samplesPerNanosecond -> 58 | L179: =KnownNoiseA*RANDBETWEEN(0,100)/100 + KnownAmplitudeA*COS(2*PI()*KnownFrequencyA*time+KnownPhaseA) -> 0.9428275118 | M179: =UnknownNoiseA*RANDBETWEEN(0,100)/100 + UnknownAmplitudeA*COS(2*PI()*UnknownFrequencyA*time+UnknownPhaseA) -> 0.2048566698 | O179: =KnownNoiseB*RANDBETWEEN(0,100)/100 + KnownAmplitudeB*COS(2*PI()*KnownFrequencyB*time+KnownPhaseB) -> 1.070266502 | P179: =UnknownNoiseB*RANDBETWEEN(0,100)/100 + UnknownAmplitudeB*COS(2*PI()*UnknownFrequencyB*time+UnknownPhaseB) -> -0.9559432891
J180: =J179+1/samplesPerNanosecond -> 58.33333333 | L180: =KnownNoiseA*RANDBETWEEN(0,100)/100 + KnownAmplitudeA*COS(2*PI()*KnownFrequencyA*time+KnownPhaseA) -> 0.9296671478 | M180: =UnknownNoiseA*RANDBETWEEN(0,100)/100 + UnknownAmplitudeA*COS(2*PI()*UnknownFrequencyA*time+UnknownPhaseA) -> -0.2910194923 | O180: =KnownNoiseB*RANDBETWEEN(0,100)/100 + KnownAmplitudeB*COS(2*PI()*KnownFrequencyB*time+KnownPhaseB) -> 1.013030728 | P180: =UnknownNoiseB*RANDBETWEEN(0,100)/100 + UnknownAmplitudeB*COS(2*PI()*UnknownFrequencyB*time+UnknownPhaseB) -> -0.8846990447
J181: =J180+1/samplesPerNanosecond -> 58.66666667 | L181: =KnownNoiseA*RANDBETWEEN(0,100)/100 + KnownAmplitudeA*COS(2*PI()*KnownFrequencyA*time+KnownPhaseA) -> 0.9769670573 | M181: =UnknownNoiseA*RANDBETWEEN(0,100)/100 + UnknownAmplitudeA*COS(2*PI()*UnknownFrequencyA*time+UnknownPhaseA) -> -0.6797003882 | O181: =KnownNoiseB*RANDBETWEEN(0,100)/100 + KnownAmplitudeB*COS(2*PI()*KnownFrequencyB*time+KnownPhaseB) -> 1.022072139 | P181: =UnknownNoiseB*RANDBETWEEN(0,100)/100 + UnknownAmplitudeB*COS(2*PI()*UnknownFrequencyB*time+UnknownPhaseB) -> -0.5394507495
J182: =J181+1/samplesPerNanosecond -> 59 | L182: =KnownNoiseA*RANDBETWEEN(0,100)/100 + KnownAmplitudeA*COS(2*PI()*KnownFrequencyA*time+KnownPhaseA) -> 1.009693382 | M182: =UnknownNoiseA*RANDBETWEEN(0,100)/100 + UnknownAmplitudeA*COS(2*PI()*UnknownFrequencyA*time+UnknownPhaseA) -> -0.9227982094 | O182: =KnownNoiseB*RANDBETWEEN(0,100)/100 + KnownAmplitudeB*COS(2*PI()*KnownFrequencyB*time+KnownPhaseB) -> 1.032378382 | P182: =UnknownNoiseB*RANDBETWEEN(0,100)/100 + UnknownAmplitudeB*COS(2*PI()*UnknownFrequencyB*time+UnknownPhaseB) -> -0.1205873651
J183: =J182+1/samplesPerNanosecond -> 59.33333333 | L183: =KnownNoiseA*RANDBETWEEN(0,100)/100 + KnownAmplitudeA*COS(2*PI()*KnownFrequencyA*time+KnownPhaseA) -> 1.018815023 | M183: =UnknownNoiseA*RANDBETWEEN(0,100)/100 + UnknownAmplitudeA*COS(2*PI()*UnknownFrequencyA*time+UnknownPhaseA) -> -0.8976113649 | O183: =KnownNoiseB*RANDBETWEEN(0,100)/100 + KnownAmplitudeB*COS(2*PI()*KnownFrequencyB*time+KnownPhaseB) -> 1.076940147 | P183: =UnknownNoiseB*RANDBETWEEN(0,100)/100 + UnknownAmplitudeB*COS(2*PI()*UnknownFrequencyB*time+UnknownPhaseB) -> 0.3108332803
J184: =J183+1/samplesPerNanosecond -> 59.66666667 | L184: =KnownNoiseA*RANDBETWEEN(0,100)/100 + KnownAmplitudeA*COS(2*PI()*KnownFrequencyA*time+KnownPhaseA) -> 1.015303699 | M184: =UnknownNoiseA*RANDBETWEEN(0,100)/100 + UnknownAmplitudeA*COS(2*PI()*UnknownFrequencyA*time+UnknownPhaseA) -> -0.7857215392 | O184: =KnownNoiseB*RANDBETWEEN(0,100)/100 + KnownAmplitudeB*COS(2*PI()*KnownFrequencyB*time+KnownPhaseB) -> 1.076751186 | P184: =UnknownNoiseB*RANDBETWEEN(0,100)/100 + UnknownAmplitudeB*COS(2*PI()*UnknownFrequencyB*time+UnknownPhaseB) -> 0.7275936622
J185: =J184+1/samplesPerNanosecond -> 60 | L185: =KnownNoiseA*RANDBETWEEN(0,100)/100 + KnownAmplitudeA*COS(2*PI()*KnownFrequencyA*time+KnownPhaseA) -> 0.9841339908 | M185: =UnknownNoiseA*RANDBETWEEN(0,100)/100 + UnknownAmplitudeA*COS(2*PI()*UnknownFrequencyA*time+UnknownPhaseA) -> -0.4808885594 | O185: =KnownNoiseB*RANDBETWEEN(0,100)/100 + KnownAmplitudeB*COS(2*PI()*KnownFrequencyB*time+KnownPhaseB) -> 1.077808321 | P185: =UnknownNoiseB*RANDBETWEEN(0,100)/100 + UnknownAmplitudeB*COS(2*PI()*UnknownFrequencyB*time+UnknownPhaseB) -> 0.98946738
J186: =J185+1/samplesPerNanosecond -> 60.33333333 | L186: =KnownNoiseA*RANDBETWEEN(0,100)/100 + KnownAmplitudeA*COS(2*PI()*KnownFrequencyA*time+KnownPhaseA) -> 1.00028339 | M186: =UnknownNoiseA*RANDBETWEEN(0,100)/100 + UnknownAmplitudeA*COS(2*PI()*UnknownFrequencyA*time+UnknownPhaseA) -> -0.008861841369 | O186: =KnownNoiseB*RANDBETWEEN(0,100)/100 + KnownAmplitudeB*COS(2*PI()*KnownFrequencyB*time+KnownPhaseB) -> 1.036111453 | P186: =UnknownNoiseB*RANDBETWEEN(0,100)/100 + UnknownAmplitudeB*COS(2*PI()*UnknownFrequencyB*time+UnknownPhaseB) -> 1.067359866
J187: =J186+1/samplesPerNanosecond -> 60.66666667 | L187: =KnownNoiseA*RANDBETWEEN(0,100)/100 + KnownAmplitudeA*COS(2*PI()*KnownFrequencyA*time+KnownPhaseA) -> 1.039732337 | M187: =UnknownNoiseA*RANDBETWEEN(0,100)/100 + UnknownAmplitudeA*COS(2*PI()*UnknownFrequencyA*time+UnknownPhaseA) -> 0.4496465148 | O187: =KnownNoiseB*RANDBETWEEN(0,100)/100 + KnownAmplitudeB*COS(2*PI()*KnownFrequencyB*time+KnownPhaseB) -> 1.061663558 | P187: =UnknownNoiseB*RANDBETWEEN(0,100)/100 + UnknownAmplitudeB*COS(2*PI()*UnknownFrequencyB*time+UnknownPhaseB) -> 0.9641916427
J188: =J187+1/samplesPerNanosecond -> 61 | L188: =KnownNoiseA*RANDBETWEEN(0,100)/100 + KnownAmplitudeA*COS(2*PI()*KnownFrequencyA*time+KnownPhaseA) -> 0.9994642543 | M188: =UnknownNoiseA*RANDBETWEEN(0,100)/100 + UnknownAmplitudeA*COS(2*PI()*UnknownFrequencyA*time+UnknownPhaseA) -> 0.758206096 | O188: =KnownNoiseB*RANDBETWEEN(0,100)/100 + KnownAmplitudeB*COS(2*PI()*KnownFrequencyB*time+KnownPhaseB) -> 1.082470686 | P188: =UnknownNoiseB*RANDBETWEEN(0,100)/100 + UnknownAmplitudeB*COS(2*PI()*UnknownFrequencyB*time+UnknownPhaseB) -> 0.6873345375
J189: =J188+1/samplesPerNanosecond -> 61.33333333 | L189: =KnownNoiseA*RANDBETWEEN(0,100)/100 + KnownAmplitudeA*COS(2*PI()*KnownFrequencyA*time+KnownPhaseA) -> 1.056465578 | M189: =UnknownNoiseA*RANDBETWEEN(0,100)/100 + UnknownAmplitudeA*COS(2*PI()*UnknownFrequencyA*time+UnknownPhaseA) -> 0.986660638 | O189: =KnownNoiseB*RANDBETWEEN(0,100)/100 + KnownAmplitudeB*COS(2*PI()*KnownFrequencyB*time+KnownPhaseB) -> 0.9835419454 | P189: =UnknownNoiseB*RANDBETWEEN(0,100)/100 + UnknownAmplitudeB*COS(2*PI()*UnknownFrequencyB*time+UnknownPhaseB) -> 0.2739095131
J190: =J189+1/samplesPerNanosecond -> 61.66666667 | L190: =KnownNoiseA*RANDBETWEEN(0,100)/100 + KnownAmplitudeA*COS(2*PI()*KnownFrequencyA*time+KnownPhaseA) -> 1.094725781 | M190: =UnknownNoiseA*RANDBETWEEN(0,100)/100 + UnknownAmplitudeA*COS(2*PI()*UnknownFrequencyA*time+UnknownPhaseA) -> 1.081248676 | O190: =KnownNoiseB*RANDBETWEEN(0,100)/100 + KnownAmplitudeB*COS(2*PI()*KnownFrequencyB*time+KnownPhaseB) -> 1.029889493 | P190: =UnknownNoiseB*RANDBETWEEN(0,100)/100 + UnknownAmplitudeB*COS(2*PI()*UnknownFrequencyB*time+UnknownPhaseB) -> -0.2601078467
J191: =J190+1/samplesPerNanosecond -> 62 | L191: =KnownNoiseA*RANDBETWEEN(0,100)/100 + KnownAmplitudeA*COS(2*PI()*KnownFrequencyA*time+KnownPhaseA) -> 1.023237387 | M191: =UnknownNoiseA*RANDBETWEEN(0,100)/100 + UnknownAmplitudeA*COS(2*PI()*UnknownFrequencyA*time+UnknownPhaseA) -> 0.8878102708 | O191: =KnownNoiseB*RANDBETWEEN(0,100)/100 + KnownAmplitudeB*COS(2*PI()*KnownFrequencyB*time+KnownPhaseB) -> 1.056528507 | P191: =UnknownNoiseB*RANDBETWEEN(0,100)/100 + UnknownAmplitudeB*COS(2*PI()*UnknownFrequencyB*time+UnknownPhaseB) -> -0.5785811557
J192: =J191+1/samplesPerNanosecond -> 62.33333333 | L192: =KnownNoiseA*RANDBETWEEN(0,100)/100 + KnownAmplitudeA*COS(2*PI()*KnownFrequencyA*time+KnownPhaseA) -> 1.020995992 | M192: =UnknownNoiseA*RANDBETWEEN(0,100)/100 + UnknownAmplitudeA*COS(2*PI()*UnknownFrequencyA*time+UnknownPhaseA) -> 0.5302275125 | O192: =KnownNoiseB*RANDBETWEEN(0,100)/100 + KnownAmplitudeB*COS(2*PI()*KnownFrequencyB*time+KnownPhaseB) -> 0.9794771643 | P192: =UnknownNoiseB*RANDBETWEEN(0,100)/100 + UnknownAmplitudeB*COS(2*PI()*UnknownFrequencyB*time+UnknownPhaseB) -> -0.9053477163
J193: =J192+1/samplesPerNanosecond -> 62.66666667 | L193: =KnownNoiseA*RANDBETWEEN(0,100)/100 + KnownAmplitudeA*COS(2*PI()*KnownFrequencyA*time+KnownPhaseA) -> 1.008000264 | M193: =UnknownNoiseA*RANDBETWEEN(0,100)/100 + UnknownAmplitudeA*COS(2*PI()*UnknownFrequencyA*time+UnknownPhaseA) -> 0.08180899103 | O193: =KnownNoiseB*RANDBETWEEN(0,100)/100 + KnownAmplitudeB*COS(2*PI()*KnownFrequencyB*time+KnownPhaseB) -> 0.9827566077 | P193: =UnknownNoiseB*RANDBETWEEN(0,100)/100 + UnknownAmplitudeB*COS(2*PI()*UnknownFrequencyB*time+UnknownPhaseB) -> -0.9331452248
J194: =J193+1/samplesPerNanosecond -> 63 | L194: =KnownNoiseA*RANDBETWEEN(0,100)/100 + KnownAmplitudeA*COS(2*PI()*KnownFrequencyA*time+KnownPhaseA) -> 1.05525195 | M194: =UnknownNoiseA*RANDBETWEEN(0,100)/100 + UnknownAmplitudeA*COS(2*PI()*UnknownFrequencyA*time+UnknownPhaseA) -> -0.2830507981 | O194: =KnownNoiseB*RANDBETWEEN(0,100)/100 + KnownAmplitudeB*COS(2*PI()*KnownFrequencyB*time+KnownPhaseB) -> 0.9963909074 | P194: =UnknownNoiseB*RANDBETWEEN(0,100)/100 + UnknownAmplitudeB*COS(2*PI()*UnknownFrequencyB*time+UnknownPhaseB) -> -0.8621263978
J195: =J194+1/samplesPerNanosecond -> 63.33333333 | L195: =KnownNoiseA*RANDBETWEEN(0,100)/100 + KnownAmplitudeA*COS(2*PI()*KnownFrequencyA*time+KnownPhaseA) -> 1.016755871 | M195: =UnknownNoiseA*RANDBETWEEN(0,100)/100 + UnknownAmplitudeA*COS(2*PI()*UnknownFrequencyA*time+UnknownPhaseA) -> -0.6532531164 | O195: =KnownNoiseB*RANDBETWEEN(0,100)/100 + KnownAmplitudeB*COS(2*PI()*KnownFrequencyB*time+KnownPhaseB) -> 0.91740702 | P195: =UnknownNoiseB*RANDBETWEEN(0,100)/100 + UnknownAmplitudeB*COS(2*PI()*UnknownFrequencyB*time+UnknownPhaseB) -> -0.4798460891
J196: =J195+1/samplesPerNanosecond -> 63.66666667 | L196: =KnownNoiseA*RANDBETWEEN(0,100)/100 + KnownAmplitudeA*COS(2*PI()*KnownFrequencyA*time+KnownPhaseA) -> 1.072519916 | M196: =UnknownNoiseA*RANDBETWEEN(0,100)/100 + UnknownAmplitudeA*COS(2*PI()*UnknownFrequencyA*time+UnknownPhaseA) -> -0.885920714 | O196: =KnownNoiseB*RANDBETWEEN(0,100)/100 + KnownAmplitudeB*COS(2*PI()*KnownFrequencyB*time+KnownPhaseB) -> 0.934834741 | P196: =UnknownNoiseB*RANDBETWEEN(0,100)/100 + UnknownAmplitudeB*COS(2*PI()*UnknownFrequencyB*time+UnknownPhaseB) -> -0.1491199218
J197: =J196+1/samplesPerNanosecond -> 64 | L197: =KnownNoiseA*RANDBETWEEN(0,100)/100 + KnownAmplitudeA*COS(2*PI()*KnownFrequencyA*time+KnownPhaseA) -> 0.9775550238 | M197: =UnknownNoiseA*RANDBETWEEN(0,100)/100 + UnknownAmplitudeA*COS(2*PI()*UnknownFrequencyA*time+UnknownPhaseA) -> -0.9462611566 | O197: =KnownNoiseB*RANDBETWEEN(0,100)/100 + KnownAmplitudeB*COS(2*PI()*KnownFrequencyB*time+KnownPhaseB) -> 0.9327066525 | P197: =UnknownNoiseB*RANDBETWEEN(0,100)/100 + UnknownAmplitudeB*COS(2*PI()*UnknownFrequencyB*time+UnknownPhaseB) -> 0.3312111756
J198: =J197+1/samplesPerNanosecond -> 64.33333333 | L198: =KnownNoiseA*RANDBETWEEN(0,100)/100 + KnownAmplitudeA*COS(2*PI()*KnownFrequencyA*time+KnownPhaseA) -> 1.006875168 | M198: =UnknownNoiseA*RANDBETWEEN(0,100)/100 + UnknownAmplitudeA*COS(2*PI()*UnknownFrequencyA*time+UnknownPhaseA) -> -0.7183774029 | O198: =KnownNoiseB*RANDBETWEEN(0,100)/100 + KnownAmplitudeB*COS(2*PI()*KnownFrequencyB*time+KnownPhaseB) -> 0.9340580661 | P198: =UnknownNoiseB*RANDBETWEEN(0,100)/100 + UnknownAmplitudeB*COS(2*PI()*UnknownFrequencyB*time+UnknownPhaseB) -> 0.7061488856
J199: =J198+1/samplesPerNanosecond -> 64.66666667 | L199: =KnownNoiseA*RANDBETWEEN(0,100)/100 + KnownAmplitudeA*COS(2*PI()*KnownFrequencyA*time+KnownPhaseA) -> 1.02749733 | M199: =UnknownNoiseA*RANDBETWEEN(0,100)/100 + UnknownAmplitudeA*COS(2*PI()*UnknownFrequencyA*time+UnknownPhaseA) -> -0.3922530376 | O199: =KnownNoiseB*RANDBETWEEN(0,100)/100 + KnownAmplitudeB*COS(2*PI()*KnownFrequencyB*time+KnownPhaseB) -> 0.8219269607 | P199: =UnknownNoiseB*RANDBETWEEN(0,100)/100 + UnknownAmplitudeB*COS(2*PI()*UnknownFrequencyB*time+UnknownPhaseB) -> 0.9696442148
J200: =J199+1/samplesPerNanosecond -> 65 | L200: =KnownNoiseA*RANDBETWEEN(0,100)/100 + KnownAmplitudeA*COS(2*PI()*KnownFrequencyA*time+KnownPhaseA) -> 0.9994414712 | M200: =UnknownNoiseA*RANDBETWEEN(0,100)/100 + UnknownAmplitudeA*COS(2*PI()*UnknownFrequencyA*time+UnknownPhaseA) -> 0.0572860573 | O200: =KnownNoiseB*RANDBETWEEN(0,100)/100 + KnownAmplitudeB*COS(2*PI()*KnownFrequencyB*time+KnownPhaseB) -> 0.865353916 | P200: =UnknownNoiseB*RANDBETWEEN(0,100)/100 + UnknownAmplitudeB*COS(2*PI()*UnknownFrequencyB*time+UnknownPhaseB) -> 1.094300134
J201: =J200+1/samplesPerNanosecond -> 65.33333333 | L201: =KnownNoiseA*RANDBETWEEN(0,100)/100 + KnownAmplitudeA*COS(2*PI()*KnownFrequencyA*time+KnownPhaseA) -> 1.016730495 | M201: =UnknownNoiseA*RANDBETWEEN(0,100)/100 + UnknownAmplitudeA*COS(2*PI()*UnknownFrequencyA*time+UnknownPhaseA) -> 0.4272175598 | O201: =KnownNoiseB*RANDBETWEEN(0,100)/100 + KnownAmplitudeB*COS(2*PI()*KnownFrequencyB*time+KnownPhaseB) -> 0.8633820417 | P201: =UnknownNoiseB*RANDBETWEEN(0,100)/100 + UnknownAmplitudeB*COS(2*PI()*UnknownFrequencyB*time+UnknownPhaseB) -> 0.8805109309
... 58 more rows

Sheet Sheet2

Sheet Sheet3
